Workbook

Sheet Sheet2
A20: Choose FWHM: | D20: Choose object: | F20: Choose response: | I20: Choose an object and a response function.
A21: Gaussian | B21: 100 | I21: Enter the FWHM of the function you want to choose
A22: Triangle 1 | B22: 200 | I22: into the appropriate cell (B21 - B24) before you choose it.
A23: Triangle 2 | B23: 160 | I23: Then click the convolution button.
A24: Rectangle | B24: 200 | I24: Excel computes the Fourier transform of the object and the response,
I25: multiplies these Fourier transforms, and then computes the
I26: inverse Fourier transform of the product.
I27: The calculations are done on sheet 1.

Sheet Sheet1
B2: object | C2: transform | D2: response | E2: transform | F2: product | G2: inv. transform | H2: convolution | K2: Gaussian | L2: Triangle 1 | M2: Triangle 2 | N2: Rectangle
A3: -511.5 | B3: 0 | C3: 200 | D3: 0 | E3: 200 | F3: =IMPRODUCT(C3,E3,D$1027) -> 200 | H3: =IMABS(G3) -> 0 | J3: -511.5 | K3: =EXP(-((J3)^2/(Sheet2!B$21^2*0.360673760222241))) -> 3.135724988e-32 | L3: =IF(1-ABS(J3)/Sheet2!B$22 >0, 1-ABS(J3)/Sheet2!B$22,0) -> 0 | M3: 0 | N3: =IF(ABS(J3)<Sheet2!B$24/2, 1, 0) -> 0
A4: =A3+1 -> -510.5 | B4: 0 | C4: -176.125859190182-0.540349063821177i | D4: 0 | E4: -187.683701578044-0.575808191417715i | F4: =IMPRODUCT(C4,E4,D$1027) -> 165.278210295048+1.0141471244219i | H4: 0 | J4: =J3+1 -> -510.5 | K4: =EXP(-((J4)^2/(Sheet2!B$21^2*0.360673760222241))) -> 4.16292924e-32 | L4: =IF(1-ABS(J4)/Sheet2!B$22 >0, 1-ABS(J4)/Sheet2!B$22,0) -> 0 | M4: 0 | N4: =IF(ABS(J4)<Sheet2!B$24/2, 1, 0) -> 0
A5: =A4+1 -> -509.5 | B5: 0 | C5: 117.728220783034+0.722380381281328i | D5: 0 | E5: 153.445899771245+0.941544065182892i | F5: 90.3211630677982+1.10846307582808i | H5: 0 | J5: =J4+1 -> -509.5 | K5: =EXP(-((J5)^2/(Sheet2!B$21^2*0.360673760222241))) -> 5.523562433e-32 | L5: =IF(1-ABS(J5)/Sheet2!B$22 >0, 1-ABS(J5)/Sheet2!B$22,0) -> 0 | M5: 0 | N5: =IF(ABS(J5)<Sheet2!B$24/2, 1, 0) -> 0
A6: -508.5 | B6: 0 | C6: -54.8220674545023-0.504590237642289i | D6: 0 | E6: -104.71109535718-0.963776065795289i | F6: 28.6999621045604+0.52836196490064i | H6: 0 | J6: -508.5 | K6: =EXP(-((J6)^2/(Sheet2!B$21^2*0.360673760222241))) -> 7.324849088e-32 | L6: =IF(1-ABS(J6)/Sheet2!B$22 >0, 1-ABS(J6)/Sheet2!B$22,0) -> 0 | M6: 0 | N6: =IF(ABS(J6)<Sheet2!B$24/2, 1, 0) -> 0
A7: -507.5 | B7: 0 | C7: 13.3605316128196+0.163966621589324i | D7: 0 | E7: 51.692420358926+0.634393284163606i | F7: 3.45267098512513+0.084758315280283i | H7: 0 | J7: -507.5 | K7: =EXP(-((J7)^2/(Sheet2!B$21^2*0.360673760222241))) -> 9.708167743e-32 | L7: =IF(1-ABS(J7)/Sheet2!B$22 >0, 1-ABS(J7)/Sheet2!B$22,0) -> 0 | M7: 0 | N7: =IF(ABS(J7)<Sheet2!B$24/2, 1, 0) -> 0
A8: -506.5 | B8: 0 | C8: -0.114973924740804-1.76381626646764E-003i | D8: 0 | E8: -4.7952877857486-7.35645635996588E-002i | F8: 0.00275601651307622+0.0000845800659889712i | H8: 0 | J8: -506.5 | K8: =EXP(-((J8)^2/(Sheet2!B$21^2*0.360673760222241))) -> 1.285982439e-31 | L8: =IF(1-ABS(J8)/Sheet2!B$22 >0, 1-ABS(J8)/Sheet2!B$22,0) -> 0 | M8: 0 | N8: =IF(ABS(J8)<Sheet2!B$24/2, 1, 0) -> 0
A9: -505.5 | B9: 0 | C9: 3.89914514361485+7.17826728135623E-002i | D9: 0 | E9: -27.9254190429249-0.514102744193179i | F9: -0.544241791877757-0.020045612183399i | H9: 0 | J9: -505.5 | K9: =EXP(-((J9)^2/(Sheet2!B$21^2*0.360673760222241))) -> 1.702519051e-31 | L9: =IF(1-ABS(J9)/Sheet2!B$22 >0, 1-ABS(J9)/Sheet2!B$22,0) -> 0 | M9: 0 | N9: =IF(ABS(J9)<Sheet2!B$24/2, 1, 0) -> 0
A10: -504.5 | B10: 0 | C10: -9.05799856507923-0.194557052136686i | D10: 0 | E10: 42.5628912671098+0.914209755703427i | F10: -1.92678371034-0.0828091065534313i | H10: 0 | J10: -504.5 | K10: =EXP(-((J10)^2/(Sheet2!B$21^2*0.360673760222241))) -> 2.252724584e-31 | L10: =IF(1-ABS(J10)/Sheet2!B$22 >0, 1-ABS(J10)/Sheet2!B$22,0) -> 0 | M10: 0 | N10: =IF(ABS(J10)<Sheet2!B$24/2, 1, 0) -> 0
A11: -503.5 | B11: 0 | C11: 7.98111634542115+0.195925409171105i | D11: 0 | E11: -39.9527629718425-0.980785280403198i | F11: -1.59337744420969-0.0782776143277442i | H11: 0 | J11: -503.5 | K11: =EXP(-((J11)^2/(Sheet2!B$21^2*0.360673760222241))) -> 2.979088415e-31 | L11: =IF(1-ABS(J11)/Sheet2!B$22 >0, 1-ABS(J11)/Sheet2!B$22,0) -> 0 | M11: 0 | N11: =IF(ABS(J11)<Sheet2!B$24/2, 1, 0) -> 0
A12: -502.5 | B12: 0 | C12: -3.11662098754186-8.60769371539642E-002i | D12: 0 | E12: 24.9664614534853+0.689540544737028i | F12: -0.388758221062264-0.021490365334885i | H12: 0 | J12: -502.5 | K12: =EXP(-((J12)^2/(Sheet2!B$21^2*0.360673760222241))) -> 3.937475486e-31 | L12: =IF(1-ABS(J12)/Sheet2!B$22 >0, 1-ABS(J12)/Sheet2!B$22,0) -> 0 | M12: 0 | N12: =IF(ABS(J12)<Sheet2!B$24/2, 1, 0) -> 0
A13: -501.5 | B13: 0 | C13: 0.114297896929782+3.50771616166067E-003i | D13: 0 | E13: -4.7811692488293-0.146730474455348i | F13: -0.0027298145057494-0.000167709846457545i | H13: 0 | J13: -501.5 | K13: =EXP(-((J13)^2/(Sheet2!B$21^2*0.360673760222241))) -> 5.201295276e-31 | L13: =IF(1-ABS(J13)/Sheet2!B$22 >0, 1-ABS(J13)/Sheet2!B$22,0) -> 0 | M13: 0 | N13: =IF(ABS(J13)<Sheet2!B$24/2, 1, 0) -> 0
A14: -500.5 | B14: 0 | C14: -0.886807713558488-2.99389785803193E-002i | D14: 0 | E14: -13.3177153713274-0.449611329654578i | F14: 0.0589839590715079+0.00398718795240964i | H14: 0 | J14: -500.5 | K14: =EXP(-((J14)^2/(Sheet2!B$21^2*0.360673760222241))) -> 6.866957056e-31 | L14: =IF(1-ABS(J14)/Sheet2!B$22 >0, 1-ABS(J14)/Sheet2!B$22,0) -> 0 | M14: 0 | N14: =IF(ABS(J14)<Sheet2!B$24/2, 1, 0) -> 0
A15: -499.5 | B15: 0 | C15: 2.86665058708272+0.105584993272407i | D15: 0 | E15: 23.9443128407675+0.881921264348318i | F15: 0.342734304057577+0.0252816011020484i | H15: 0 | J15: -499.5 | K15: =EXP(-((J15)^2/(Sheet2!B$21^2*0.360673760222241))) -> 9.061004159e-31 | L15: =IF(1-ABS(J15)/Sheet2!B$22 >0, 1-ABS(J15)/Sheet2!B$22,0) -> 0 | M15: 0 | N15: =IF(ABS(J15)<Sheet2!B$24/2, 1, 0) -> 0
A16: -498.5 | B16: 0 | C16: -3.09289989596152-0.123421123172306i | D16: 0 | E16: -24.8712681460415-0.992479534598645i | F16: 0.384009248612186+0.0306963984930406i | H16: 0 | J16: -498.5 | K16: =EXP(-((J16)^2/(Sheet2!B$21^2*0.360673760222241))) -> 1.194943865e-30 | L16: =IF(1-ABS(J16)/Sheet2!B$22 >0, 1-ABS(J16)/Sheet2!B$22,0) -> 0 | M16: 0 | N16: =IF(ABS(J16)<Sheet2!B$24/2, 1, 0) -> 0
A17: -497.5 | B17: 0 | C17: 1.48613705303464+6.38710411123556E-002i | D17: 0 | E17: 17.2402845280152+0.740951125354911i | F17: 0.127870501610767+0.0110115492187761i | H17: 0 | J17: -497.5 | K17: =EXP(-((J17)^2/(Sheet2!B$21^2*0.360673760222241))) -> 1.574990194e-30 | L17: =IF(1-ABS(J17)/Sheet2!B$22 >0, 1-ABS(J17)/Sheet2!B$22,0) -> 0 | M17: 0 | N17: =IF(ABS(J17)<Sheet2!B$24/2, 1, 0) -> 0
A18: -496.5 | B18: 0 | C18: -0.113178480836538-5.21208834065088E-003i | D18: 0 | E18: -4.75769862089755-0.219101240156858i | F18: 0.00268663563586016+0.000247975455103328i | H18: 0 | J18: -496.5 | K18: =EXP(-((J18)^2/(Sheet2!B$21^2*0.360673760222241))) -> 2.074757679e-30 | L18: =IF(1-ABS(J18)/Sheet2!B$22 >0, 1-ABS(J18)/Sheet2!B$22,0) -> 0 | M18: 0 | N18: =IF(ABS(J18)<Sheet2!B$24/2, 1, 0) -> 0
A19: -495.5 | B19: 0 | C19: 0.303397147441404+1.49049460828385E-002i | D19: 0 | E19: -7.78970021812656-0.382683432365083i | F19: -0.0117883447483854-0.00116105061752652i | H19: 0 | J19: -495.5 | K19: =EXP(-((J19)^2/(Sheet2!B$21^2*0.360673760222241))) -> 2.731593577e-30 | L19: =IF(1-ABS(J19)/Sheet2!B$22 >0, 1-ABS(J19)/Sheet2!B$22,0) -> 0 | M19: 0 | N19: =IF(ABS(J19)<Sheet2!B$24/2, 1, 0) -> 0
A20: -494.5 | B20: 0 | C20: -1.30962554791763-6.83659751158451E-002i | D20: 0 | E20: 16.18410051821+0.844853565249677i | F20: -0.105686761354482-0.0110644181330028i | H20: 0 | J20: -494.5 | K20: =EXP(-((J20)^2/(Sheet2!B$21^2*0.360673760222241))) -> 3.594379769e-30 | L20: =IF(1-ABS(J20)/Sheet2!B$22 >0, 1-ABS(J20)/Sheet2!B$22,0) -> 0 | M20: 0 | N20: =IF(ABS(J20)<Sheet2!B$24/2, 1, 0) -> 0
A21: -493.5 | B21: 0 | C21: 1.63228013586519+9.02316518291745E-002i | D21: 0 | E21: -18.0680941765598-0.998795456205137i | F21: -0.147010341267436-0.0163031398295607i | H21: 0 | J21: -493.5 | K21: =EXP(-((J21)^2/(Sheet2!B$21^2*0.360673760222241))) -> 4.727058918e-30 | L21: =IF(1-ABS(J21)/Sheet2!B$22 >0, 1-ABS(J21)/Sheet2!B$22,0) -> 0 | M21: 0 | N21: =IF(ABS(J21)<Sheet2!B$24/2, 1, 0) -> 0
A22: -492.5 | B22: 0 | C22: -0.912457431794959-5.3248626806862E-002i | D22: 0 | E22: 13.5089409784404+0.788346427626575i | F22: -0.061421776133691-0.00719332556716887i | H22: 0 | J22: -492.5 | K22: =EXP(-((J22)^2/(Sheet2!B$21^2*0.360673760222241))) -> 6.213227356e-30 | L22: =IF(1-ABS(J22)/Sheet2!B$22 >0, 1-ABS(J22)/Sheet2!B$22,0) -> 0 | M22: 0 | N22: =IF(ABS(J22)<Sheet2!B$24/2, 1, 0) -> 0
A23: -491.5 | B23: 0 | C23: 0.111626518615317+6.85792615510635E-003i | D23: 0 | E23: -4.72496600231814-0.290284677254452i | F23: -0.00262720377266968-0.000324034679292856i | H23: 0 | J23: -491.5 | K23: =EXP(-((J23)^2/(Sheet2!B$21^2*0.360673760222241))) -> 8.16211392e-30 | L23: =IF(1-ABS(J23)/Sheet2!B$22 >0, 1-ABS(J23)/Sheet2!B$22,0) -> 0 | M23: 0 | N23: =IF(ABS(J23)<Sheet2!B$24/2, 1, 0) -> 0
A24: -490.5 | B24: 0 | C24: -0.118197175136321-7.62566617862032E-003i | D24: 0 | E24: -4.8620402124274-0.313681740398881i | F24: 0.00286143693134753+0.00037076295606996i | H24: 0 | J24: -490.5 | K24: =EXP(-((J24)^2/(Sheet2!B$21^2*0.360673760222241))) -> 1.071635851e-29 | L24: =IF(1-ABS(J24)/Sheet2!B$22 >0, 1-ABS(J24)/Sheet2!B$22,0) -> 0 | M24: 0 | N24: =IF(ABS(J24)<Sheet2!B$24/2, 1, 0) -> 0
A25: -489.5 | B25: 0 | C25: 0.705927289163047+4.77191566475878E-002i | D25: 0 | E25: 11.8821487043634+0.803207531480618i | F25: 0.0417480231914411+0.00567006115333452i | H25: 0 | J25: -489.5 | K25: =EXP(-((J25)^2/(Sheet2!B$21^2*0.360673760222241))) -> 1.406212625e-29 | L25: =IF(1-ABS(J25)/Sheet2!B$22 >0, 1-ABS(J25)/Sheet2!B$22,0) -> 0 | M25: 0 | N25: =IF(ABS(J25)<Sheet2!B$24/2, 1, 0) -> 0
A26: -488.5 | B26: 0 | C26: -1.00025232206714-7.06982990673473E-002i | D26: 0 | E26: -14.1439196976447-0.999698818696162i | F26: 0.0703840575731941+0.00999951064768621i | H26: 0 | J26: -488.5 | K26: =EXP(-((J26)^2/(Sheet2!B$21^2*0.360673760222241))) -> 1.844225093e-29 | L26: =IF(1-ABS(J26)/Sheet2!B$22 >0, 1-ABS(J26)/Sheet2!B$22,0) -> 0 | M26: 0 | N26: =IF(ABS(J26)<Sheet2!B$24/2, 1, 0) -> 0
A27: -487.5 | B27: 0 | C27: 0.63528524427622+4.68614548986344E-002i | D27: 0 | E27: 11.2719585190526+0.831469612302527i | F27: 0.0356097252275563+0.00528220375759863i | H27: 0 | J27: -487.5 | K27: =EXP(-((J27)^2/(Sheet2!B$21^2*0.360673760222241))) -> 2.417330531e-29 | L27: =IF(1-ABS(J27)/Sheet2!B$22 >0, 1-ABS(J27)/Sheet2!B$22,0) -> 0 | M27: 0 | N27: =IF(ABS(J27)<Sheet2!B$24/2, 1, 0) -> 0
A28: -486.5 | B28: 0 | C28: -0.109656984518861-8.42711671282044E-003i | D28: 0 | E28: -4.68309693512421-0.359895036534976i | F28: 0.00255250705318998+0.000394650044497371i | H28: 0 | J28: -486.5 | K28: =EXP(-((J28)^2/(Sheet2!B$21^2*0.360673760222241))) -> 3.166775844e-29 | L28: =IF(1-ABS(J28)/Sheet2!B$22 >0, 1-ABS(J28)/Sheet2!B$22,0) -> 0 | M28: 0 | N28: =IF(ABS(J28)<Sheet2!B$24/2, 1, 0) -> 0
A29: -485.5 | B29: 0 | C29: 4.61976860353254E-002+3.69288652583736E-003i | D29: 0 | E29: -3.03966070591158-0.242980179903256i | F29: -0.000697639963566042-0.000112251220639778i | H29: 0 | J29: -485.5 | K29: =EXP(-((J29)^2/(Sheet2!B$21^2*0.360673760222241))) -> 4.146271971e-29 | L29: =IF(1-ABS(J29)/Sheet2!B$22 >0, 1-ABS(J29)/Sheet2!B$22,0) -> 0 | M29: 0 | N29: =IF(ABS(J29)<Sheet2!B$24/2, 1, 0) -> 0
A30: -484.5 | B30: 0 | C30: -0.415895450665059-3.45296969095077E-002i | D30: 0 | E30: 9.12025713086028+0.757208846506453i | F30: -0.0188346362882664-0.00314919714465376i | H30: 0 | J30: -484.5 | K30: =EXP(-((J30)^2/(Sheet2!B$21^2*0.360673760222241))) -> 5.425720579e-29 | L30: =IF(1-ABS(J30)/Sheet2!B$22 >0, 1-ABS(J30)/Sheet2!B$22,0) -> 0 | M30: 0 | N30: =IF(ABS(J30)<Sheet2!B$24/2, 1, 0) -> 0
A31: -483.5 | B31: 0 | C31: 0.667761379570733+5.75041718372552E-002i | D31: 0 | E31: -11.5564819869259-0.995184726672163i | F31: -0.038298725405208-0.00664545926010329i | H31: 0 | J31: -483.5 | K31: =EXP(-((J31)^2/(Sheet2!B$21^2*0.360673760222241))) -> 7.096042999e-29 | L31: =IF(1-ABS(J31)/Sheet2!B$22 >0, 1-ABS(J31)/Sheet2!B$22,0) -> 0 | M31: 0 | N31: =IF(ABS(J31)<Sheet2!B$24/2, 1, 0) -> 0
A32: -482.5 | B32: 0 | C32: -0.475667435737911-4.2432575038943E-002i | D32: 0 | E32: 9.75363968719231+0.870086991108672i | F32: -0.0230128437378883-0.00413872047929588i | H32: 0 | J32: -482.5 | K32: =EXP(-((J32)^2/(Sheet2!B$21^2*0.360673760222241))) -> 9.275433771e-29 | L32: =IF(1-ABS(J32)/Sheet2!B$22 >0, 1-ABS(J32)/Sheet2!B$22,0) -> 0 | M32: 0 | N32: =IF(ABS(J32)<Sheet2!B$24/2, 1, 0) -> 0
A33: -481.5 | B33: 0 | C33: 0.107288784074918+9.90271427333896E-003i | D33: 0 | E33: -4.63225180824269-0.427555093430258i | F33: -0.00246377354054424-0.000458718660991777i | H33: 0 | J33: -481.5 | K33: =EXP(-((J33)^2/(Sheet2!B$21^2*0.360673760222241))) -> 1.211745443e-28 | L33: =IF(1-ABS(J33)/Sheet2!B$22 >0, 1-ABS(J33)/Sheet2!B$22,0) -> 0 | M33: 0 | N33: =IF(ABS(J33)<Sheet2!B$24/2, 1, 0) -> 0
A34: -480.5 | B34: 0 | C34: -1.60590915322789E-002-1.53195072362452E-003i | D34: 0 | E34: -1.79215465471946-0.170961888760308i | F34: 0.000142592352254705+0.000027454926201388i | H34: 0 | J34: -480.5 | K34: =EXP(-((J34)^2/(Sheet2!B$21^2*0.360673760222241))) -> 1.582150298e-28 | L34: =IF(1-ABS(J34)/Sheet2!B$22 >0, 1-ABS(J34)/Sheet2!B$22,0) -> 0 | M34: 0 | N34: =IF(ABS(J34)<Sheet2!B$24/2, 1, 0) -> 0
A35: -479.5 | B35: 0 | C35: 0.257717172299542+2.53829259690217E-002i | D35: 0 | E35: 7.17937563162067+0.707106781186541i | F35: 0.00916149973789233+0.00182233560161226i | H35: 0 | J35: -479.5 | K35: =EXP(-((J35)^2/(Sheet2!B$21^2*0.360673760222241))) -> 2.06463486e-28 | L35: =IF(1-ABS(J35)/Sheet2!B$22 >0, 1-ABS(J35)/Sheet2!B$22,0) -> 0 | M35: 0 | N35: =IF(ABS(J35)<Sheet2!B$24/2, 1, 0) -> 0
A36: -478.5 | B36: 0 | C36: -0.470310554324307-4.77788830327076E-002i | D36: 0 | E36: -9.69856230917036-0.985277642388927i | F36: 0.0225713037527215+0.0046338647415528i | H36: 0 | J36: -478.5 | K36: =EXP(-((J36)^2/(Sheet2!B$21^2*0.360673760222241))) -> 2.692761877e-28 | L36: =IF(1-ABS(J36)/Sheet2!B$22 >0, 1-ABS(J36)/Sheet2!B$22,0) -> 0 | M36: 0 | N36: =IF(ABS(J36)<Sheet2!B$24/2, 1, 0) -> 0
A37: -477.5 | B37: 0 | C37: 0.372804029303705+3.90291045824496E-002i | D37: 0 | E37: 8.63485992131541+0.903989293123434i | F37: 0.0159191433923836+0.00337010850923823i | H37: 0 | J37: -477.5 | K37: =EXP(-((J37)^2/(Sheet2!B$21^2*0.360673760222241))) -> 3.510038018e-28 | L37: =IF(1-ABS(J37)/Sheet2!B$22 >0, 1-ABS(J37)/Sheet2!B$22,0) -> 0 | M37: 0 | N37: =IF(ABS(J37)<Sheet2!B$24/2, 1, 0) -> 0
A38: -476.5 | B38: 0 | C38: -0.104544501436948-1.12691932228864E-002i | D38: 0 | E38: -4.57262509805767-0.492898192229776i | F38: 0.00236244123083533+0.000515297957658333i | H38: 0 | J38: -476.5 | K38: =EXP(-((J38)^2/(Sheet2!B$21^2*0.360673760222241))) -> 4.572828005e-28 | L38: =IF(1-ABS(J38)/Sheet2!B$22 >0, 1-ABS(J38)/Sheet2!B$22,0) -> 0 | M38: 0 | N38: =IF(ABS(J38)<Sheet2!B$24/2, 1, 0) -> 0
A39: -475.5 | B39: 0 | C39: 3.90595579938003E-003+4.33162340936949E-004i | D39: 0 | E39: -0.883850190855828-9.80171403295593E-002i | F39: -0.0000170491122239969-3.82850617708784E-06i | H39: 0 | J39: -475.5 | K39: =EXP(-((J39)^2/(Sheet2!B$21^2*0.360673760222241))) -> 5.954113226e-28 | L39: =IF(1-ABS(J39)/Sheet2!B$22 >0, 1-ABS(J39)/Sheet2!B$22,0) -> 0 | M39: 0 | N39: =IF(ABS(J39)<Sheet2!B$24/2, 1, 0) -> 0
A40: -474.5 | B40: 0 | C40: -0.16412734876333-1.8711284363198E-002i | D40: 0 | E40: 5.72935159967199+0.653172842953763i | F40: -0.0046406079269214-0.00107203526998207i | H40: 0 | J40: -474.5 | K40: =EXP(-((J40)^2/(Sheet2!B$21^2*0.360673760222241))) -> 7.748336754e-28 | L40: =IF(1-ABS(J40)/Sheet2!B$22 >0, 1-ABS(J40)/Sheet2!B$22,0) -> 0 | M40: 0 | N40: =IF(ABS(J40)<Sheet2!B$24/2, 1, 0) -> 0
A41: -473.5 | B41: 0 | C41: 0.343025784501861+4.01729858883371E-002i | D41: 0 | E41: -8.28282300308108-0.970031253194523i | F41: -0.0140112640333806-0.00332745731618372i | H41: 0 | J41: -473.5 | K41: =EXP(-((J41)^2/(Sheet2!B$21^2*0.360673760222241))) -> 1.007764514e-27 | L41: =IF(1-ABS(J41)/Sheet2!B$22 >0, 1-ABS(J41)/Sheet2!B$22,0) -> 0 | M41: 0 | N41: =IF(ABS(J41)<Sheet2!B$24/2, 1, 0) -> 0
A42: -472.5 | B42: 0 | C42: -0.301119348960813-3.62020051046738E-002i | D42: 0 | E42: 7.76040397093844+0.932992798834713i | F42: -0.0115151579066793-0.0028094218417024i | H42: 0 | J42: -472.5 | K42: =EXP(-((J42)^2/(Sheet2!B$21^2*0.360673760222241))) -> 1.309992509e-27 | L42: =IF(1-ABS(J42)/Sheet2!B$22 >0, 1-ABS(J42)/Sheet2!B$22,0) -> 0 | M42: 0 | N42: =IF(ABS(J42)<Sheet2!B$24/2, 1, 0) -> 0
A43: -471.5 | B43: 0 | C43: 0.101450098935586+1.25126762586125E-002i | D43: 0 | E43: -4.50444444822181-0.555570233019596i | F43: -0.00225012332228629-0.000563626551055043i | H43: 0 | J43: -471.5 | K43: =EXP(-((J43)^2/(Sheet2!B$21^2*0.360673760222241))) -> 1.701914501e-27 | L43: =IF(1-ABS(J43)/Sheet2!B$22 >0, 1-ABS(J43)/Sheet2!B$22,0) -> 0 | M43: 0 | N43: =IF(ABS(J43)<Sheet2!B$24/2, 1, 0) -> 0
A44: -470.5 | B44: 0 | C44: -1.88320269335263E-004-2.3813862131851E-005i | D44: 0 | E44: -0.194072290308128-2.45412285229102E-002i | F44: 1.79816622743736E-07+4.62161076513151E-08i | H44: 0 | J44: -470.5 | K44: =EXP(-((J44)^2/(Sheet2!B$21^2*0.360673760222241))) -> 2.209865495e-27 | L44: =IF(1-ABS(J44)/Sheet2!B$22 >0, 1-ABS(J44)/Sheet2!B$22,0) -> 0 | M44: 0 | N44: =IF(ABS(J44)<Sheet2!B$24/2, 1, 0) -> 0
A45: -469.5 | B45: 0 | C45: 0.105681720363422+1.36934232641101E-002i | D45: 0 | E45: 4.59742798450218+0.595699304492424i | F45: 0.0023885346796729+0.000629545273180531i | H45: 0 | J45: -469.5 | K45: =EXP(-((J45)^2/(Sheet2!B$21^2*0.360673760222241))) -> 2.867828123e-27 | L45: =IF(1-ABS(J45)/Sheet2!B$22 >0, 1-ABS(J45)/Sheet2!B$22,0) -> 0 | M45: 0 | N45: =IF(ABS(J45)<Sheet2!B$24/2, 1, 0) -> 0
A46: -468.5 | B46: 0 | C46: -0.256029250318653-3.39732936456692E-002i | D46: 0 | E46: -7.15582630195345-0.949528180593018i | F46: 0.00899921121897758+0.00243106988233666i | H46: 0 | J46: -468.5 | K46: =EXP(-((J46)^2/(Sheet2!B$21^2*0.360673760222241))) -> 3.71962856e-27 | L46: =IF(1-ABS(J46)/Sheet2!B$22 >0, 1-ABS(J46)/Sheet2!B$22,0) -> 0 | M46: 0 | N46: =IF(ABS(J46)<Sheet2!B$24/2, 1, 0) -> 0
A47: -467.5 | B47: 0 | C47: 0.248219600441595+3.37122624347079E-002i | D47: 0 | E47: 7.04584417144736+0.956940335732194i | F47: 0.00858328000638922+0.00237531347781891i | H47: 0 | J47: -467.5 | K47: =EXP(-((J47)^2/(Sheet2!B$21^2*0.360673760222241))) -> 4.821755717e-27 | L47: =IF(1-ABS(J47)/Sheet2!B$22 >0, 1-ABS(J47)/Sheet2!B$22,0) -> 0 | M47: 0 | N47: =IF(ABS(J47)<Sheet2!B$24/2, 1, 0) -> 0
A48: -466.5 | B48: 0 | C48: -9.80345736031264E-002-1.36211338801421E-002i | D48: 0 | E48: -4.42796959346189-0.615231590580614i | F48: 0.00212856979580027+0.000603139666497433i | H48: 0 | J48: -466.5 | K48: =EXP(-((J48)^2/(Sheet2!B$21^2*0.360673760222241))) -> 6.246978488e-27 | L48: =IF(1-ABS(J48)/Sheet2!B$22 >0, 1-ABS(J48)/Sheet2!B$22,0) -> 0 | M48: 0 | N48: =IF(ABS(J48)<Sheet2!B$24/2, 1, 0) -> 0
A49: -465.5 | B49: 0 | C49: 5.9641980713664E-004+8.47337652510338E-005i | D49: 0 | E49: 0.345375102494928+4.90676743274185E-002i | F49: 1.00915431610974E-06+2.92649328586797E-07i | H49: 0 | J49: -465.5 | K49: =EXP(-((J49)^2/(Sheet2!B$21^2*0.360673760222241))) -> 8.088984306e-27 | L49: =IF(1-ABS(J49)/Sheet2!B$22 >0, 1-ABS(J49)/Sheet2!B$22,0) -> 0 | M49: 0 | N49: =IF(ABS(J49)<Sheet2!B$24/2, 1, 0) -> 0
A50: -464.5 | B50: 0 | C50: -6.78779767097722E-002-9.85601365103728E-003i | D50: 0 | E50: 3.68450747616945+0.534997619887079i | F50: -0.00122411984404766-0.000363145559824769i | H50: 0 | J50: -464.5 | K50: =EXP(-((J50)^2/(Sheet2!B$21^2*0.360673760222241))) -> 1.046832389e-26 | L50: =IF(1-ABS(J50)/Sheet2!B$22 >0, 1-ABS(J50)/Sheet2!B$22,0) -> 0 | M50: 0 | N50: =IF(ABS(J50)<Sheet2!B$24/2, 1, 0) -> 0
A51: -463.5 | B51: 0 | C51: 0.19395797519053+2.87709477908252E-002i | D51: 0 | E51: -6.2282898967619-0.923879532511277i | F51: -0.0059072280374034-0.00179193803445861i | H51: 0 | J51: -463.5 | K51: =EXP(-((J51)^2/(Sheet2!B$21^2*0.360673760222241))) -> 1.35400256e-26 | L51: =IF(1-ABS(J51)/Sheet2!B$22 >0, 1-ABS(J51)/Sheet2!B$22,0) -> 0 | M51: 0 | N51: =IF(ABS(J51)<Sheet2!B$24/2, 1, 0) -> 0
A52: -462.5 | B52: 0 | C52: -0.207460142763704-3.14245879277669E-002i | D52: 0 | E52: 6.44143062935091+0.975702130038514i | F52: -0.00652839540295465-0.00202419303192644i | H52: 0 | J52: -462.5 | K52: =EXP(-((J52)^2/(Sheet2!B$21^2*0.360673760222241))) -> 1.75033427e-26 | L52: =IF(1-ABS(J52)/Sheet2!B$22 >0, 1-ABS(J52)/Sheet2!B$22,0) -> 0 | M52: 0 | N52: =IF(ABS(J52)<Sheet2!B$24/2, 1, 0) -> 0
A53: -461.5 | B53: 0 | C53: 9.43295761087024E-002+1.45845518280506E-002i | D53: 0 | E53: -4.34349113291826-0.671558954847007i | F53: -0.00199962645508765-0.00063347871542723i | H53: 0 | J53: -461.5 | K53: =EXP(-((J53)^2/(Sheet2!B$21^2*0.360673760222241))) -> 2.261422362e-26 | L53: =IF(1-ABS(J53)/Sheet2!B$22 >0, 1-ABS(J53)/Sheet2!B$22,0) -> 0 | M53: 0 | N53: =IF(ABS(J53)<Sheet2!B$24/2, 1, 0) -> 0
A54: -460.5 | B54: 0 | C54: -3.01050588396097E-003-4.74923911256056E-004i | D54: 0 | E54: 0.775951787671346+0.122410675199215i | F54: -0.0000113893583290476-3.68518057946938E-06i | H54: 0 | J54: -460.5 | K54: =EXP(-((J54)^2/(Sheet2!B$21^2*0.360673760222241))) -> 2.920125688e-26 | L54: =IF(1-ABS(J54)/Sheet2!B$22 >0, 1-ABS(J54)/Sheet2!B$22,0) -> 0 | M54: 0 | N54: =IF(ABS(J54)<Sheet2!B$24/2, 1, 0) -> 0
A55: -459.5 | B55: 0 | C55: 4.29164415511039E-002+6.90531391722796E-003i | D55: 0 | E55: 2.92972495470487+0.471396736825991i | F55: 0.000612391136660309+0.000202306705033737i | H55: 0 | J55: -459.5 | K55: =EXP(-((J55)^2/(Sheet2!B$21^2*0.360673760222241))) -> 3.768604681e-26 | L55: =IF(1-ABS(J55)/Sheet2!B$22 >0, 1-ABS(J55)/Sheet2!B$22,0) -> 0 | M55: 0 | N55: =IF(ABS(J55)<Sheet2!B$24/2, 1, 0) -> 0
A56: -458.5 | B56: 0 | C56: -0.148230278341904-2.43172239397764E-002i | D56: 0 | E56: -5.44481915846426-0.8932243011955i | F56: 0.00392683162009934+0.00132402886787961i | H56: 0 | J56: -458.5 | K56: =EXP(-((J56)^2/(Sheet2!B$21^2*0.360673760222241))) -> 4.860923626e-26 | L56: =IF(1-ABS(J56)/Sheet2!B$22 >0, 1-ABS(J56)/Sheet2!B$22,0) -> 0 | M56: 0 | N56: =IF(ABS(J56)<Sheet2!B$24/2, 1, 0) -> 0
A57: -457.5 | B57: 0 | C57: 0.174997712429548+2.92600445195431E-002i | D57: 0 | E57: 5.9160411159751+0.989176509964765i | F57: 0.00503175156607769+0.00173103626432878i | H57: 0 | J57: -457.5 | K57: =EXP(-((J57)^2/(Sheet2!B$21^2*0.360673760222241))) -> 6.266372217e-26 | L57: =IF(1-ABS(J57)/Sheet2!B$22 >0, 1-ABS(J57)/Sheet2!B$22,0) -> 0 | M57: 0 | N57: =IF(ABS(J57)<Sheet2!B$24/2, 1, 0) -> 0
A58: -456.5 | B58: 0 | C58: -9.03689981051656E-002-1.53950637115854E-002i | D58: 0 | E58: -4.25132915933713-0.724247082951454i | F58: 0.00186519263379802+0.000654494832669138i | H58: 0 | J58: -456.5 | K58: =EXP(-((J58)^2/(Sheet2!B$21^2*0.360673760222241))) -> 8.073702722e-26 | L58: =IF(1-ABS(J58)/Sheet2!B$22 >0, 1-ABS(J58)/Sheet2!B$22,0) -> 0 | M58: 0 | N58: =IF(ABS(J58)<Sheet2!B$24/2, 1, 0) -> 0
A59: -455.5 | B59: 0 | C59: 6.3206260559565E-003+1.09673265908436E-003i | D59: 0 | E59: 1.12433322960329+0.195090322016124i | F59: 0.0000344626398949095+0.0000123309297259989i | H59: 0 | J59: -455.5 | K59: =EXP(-((J59)^2/(Sheet2!B$21^2*0.360673760222241))) -> 1.039653205e-25 | L59: =IF(1-ABS(J59)/Sheet2!B$22 >0, 1-ABS(J59)/Sheet2!B$22,0) -> 0 | M59: 0 | N59: =IF(ABS(J59)<Sheet2!B$24/2, 1, 0) -> 0
A60: -454.5 | B60: 0 | C60: -2.63045030280911E-002-4.64743974322946E-003i | D60: 0 | E60: 2.29366532118721+0.405241314004983i | F60: -0.000292251958991456-0.000106596713713521i | H60: 0 | J60: -454.5 | K60: =EXP(-((J60)^2/(Sheet2!B$21^2*0.360673760222241))) -> 1.338022496e-25 | L60: =IF(1-ABS(J60)/Sheet2!B$22 >0, 1-ABS(J60)/Sheet2!B$22,0) -> 0 | M60: 0 | N60: =IF(ABS(J60)<Sheet2!B$24/2, 1, 0) -> 0
A61: -453.5 | B61: 0 | C61: 0.11373082308712+2.04537992783077E-002i | D61: 0 | E61: -4.7692939327979-0.857728610000258i | F61: -0.00262435957848653-0.000975501808006998i | H61: 0 | J61: -453.5 | K61: =EXP(-((J61)^2/(Sheet2!B$21^2*0.360673760222241))) -> 1.721065939e-25 | L61: =IF(1-ABS(J61)/Sheet2!B$22 >0, 1-ABS(J61)/Sheet2!B$22,0) -> 0 | M61: 0 | N61: =IF(ABS(J61)<Sheet2!B$24/2, 1, 0) -> 0
A62: -452.5 | B62: 0 | C62: -0.14847385197872-2.71726286315864E-002i | D62: 0 | E62: 5.44929081585324+0.997290456678669i | F62: -0.00390989097382419-0.00148071555644697i | H62: 0 | J62: -452.5 | K62: =EXP(-((J62)^2/(Sheet2!B$21^2*0.360673760222241))) -> 2.212538213e-25 | L62: =IF(1-ABS(J62)/Sheet2!B$22 >0, 1-ABS(J62)/Sheet2!B$22,0) -> 0 | M62: 0 | N62: =IF(ABS(J62)<Sheet2!B$24/2, 1, 0) -> 0
A63: -451.5 | B63: 0 | C63: 8.61885344500911E-002+1.60470467212869E-002i | D63: 0 | E63: -4.15183175116913-0.773010453362721i | F63: -0.00172717879527734-0.000666246380899334i | H63: 0 | J63: -451.5 | K63: =EXP(-((J63)^2/(Sheet2!B$21^2*0.360673760222241))) -> 2.842779838e-25 | L63: =IF(1-ABS(J63)/Sheet2!B$22 >0, 1-ABS(J63)/Sheet2!B$22,0) -> 0 | M63: 0 | N63: =IF(ABS(J63)<Sheet2!B$24/2, 1, 0) -> 0
A64: -450.5 | B64: 0 | C64: -9.91914061553362E-003-1.87830370479524E-003i | D64: 0 | E64: 1.40848433541128+0.266712757474883i | F64: -0.0000673499330861984-0.0000264556134534957i | H64: 0 | J64: -450.5 | K64: =EXP(-((J64)^2/(Sheet2!B$21^2*0.360673760222241))) -> 3.650520982e-25 | L64: =IF(1-ABS(J64)/Sheet2!B$22 >0, 1-ABS(J64)/Sheet2!B$22,0) -> 0 | M64: 0 | N64: =IF(ABS(J64)<Sheet2!B$24/2, 1, 0) -> 0
A65: -449.5 | B65: 0 | C65: 1.53072710166601E-002+2.94728286237534E-003i | D65: 0 | E65: 1.74970117543474+0.336889853392227i | F65: 0.000128951201995686+0.0000515686428863725i | H65: 0 | J65: -449.5 | K65: =EXP(-((J65)^2/(Sheet2!B$21^2*0.360673760222241))) -> 4.685173168e-25 | L65: =IF(1-ABS(J65)/Sheet2!B$22 >0, 1-ABS(J65)/Sheet2!B$22,0) -> 0 | M65: 0 | N65: =IF(ABS(J65)<Sheet2!B$24/2, 1, 0) -> 0
A66: -448.5 | B66: 0 | C66: -8.72455406699179E-002-1.70761293971583E-002i | D66: 0 | E66: -4.17721296248617-0.817584813151581i | F66: 0.00175241009671484+0.000713306290669122i | H66: 0 | J66: -448.5 | K66: =EXP(-((J66)^2/(Sheet2!B$21^2*0.360673760222241))) -> 6.009739148e-25 | L66: =IF(1-ABS(J66)/Sheet2!B$22 >0, 1-ABS(J66)/Sheet2!B$22,0) -> 0 | M66: 0 | N66: =IF(ABS(J66)<Sheet2!B$24/2, 1, 0) -> 0
A67: -447.5 | B67: 0 | C67: 0.12637071184544+2.51366974606289E-002i | D67: 0 | E67: 5.02733949212585+0.999999999999997i | F67: 0.00305085886424004+0.00126370711845439i | H67: =IMABS(G67) -> 0 | J67: -447.5 | K67: =EXP(-((J67)^2/(Sheet2!B$21^2*0.360673760222241))) -> 7.70450555e-25 | L67: =IF(1-ABS(J67)/Sheet2!B$22 >0, 1-ABS(J67)/Sheet2!B$22,0) -> 0 | M67: 0 | N67: =IF(ABS(J67)<Sheet2!B$24/2, 1, 0) -> 0
A68: -446.5 | B68: 0 | C68: -8.18252271110715E-002-1.65371790124823E-002i | D68: 0 | E68: -4.04537333533179-0.817584813151579i | F68: =IMPRODUCT(C68,E68,D$1027) -> 0.00158746522749811+0.000668990630186977i | H68: 0 | J68: -446.5 | K68: =EXP(-((J68)^2/(Sheet2!B$21^2*0.360673760222241))) -> 9.871726141e-25 | L68: =IF(1-ABS(J68)/Sheet2!B$22 >0, 1-ABS(J68)/Sheet2!B$22,0) -> 0 | M68: 0 | N68: =IF(ABS(J68)<Sheet2!B$24/2, 1, 0) -> 0
A69: =A68+1 -> -445.5 | B69: 0 | C69: 1.34639487799329E-002+2.7641344167357E-003i | D69: 0 | E69: 1.64097219841971+0.336889853392211i | F69: 0.000105813783952032+0.000045358677305551i | H69: 0 | J69: =J68+1 -> -445.5 | K69: =EXP(-((J69)^2/(Sheet2!B$21^2*0.360673760222241))) -> 1.264155799e-24 | L69: =IF(1-ABS(J69)/Sheet2!B$22 >0, 1-ABS(J69)/Sheet2!B$22,0) -> 0 | M69: 0 | N69: =IF(ABS(J69)<Sheet2!B$24/2, 1, 0) -> 0
A70: -444.5 | B70: 0 | C70: -8.18187462179889E-003-1.70590641247377E-003i | D70: 0 | E70: 1.27920871024174+0.266712757474891i | F70: -0.00005005669139523-0.0000218221034169375i | H70: 0 | J70: -444.5 | K70: =EXP(-((J70)^2/(Sheet2!B$21^2*0.360673760222241))) -> 1.617958134e-24 | L70: =IF(1-ABS(J70)/Sheet2!B$22 >0, 1-ABS(J70)/Sheet2!B$22,0) -> 0 | M70: 0 | N70: =IF(ABS(J70)<Sheet2!B$24/2, 1, 0) -> 0
A71: -443.5 | B71: 0 | C71: 6.66641519706087E-002+1.41129092363593E-002i | D71: 0 | E71: -3.65141484826382-0.773010453362731i | F71: -0.00116254523992666-0.000515320863378421i | H71: 0 | J71: -443.5 | K71: =EXP(-((J71)^2/(Sheet2!B$21^2*0.360673760222241))) -> 2.069632016e-24 | L71: =IF(1-ABS(J71)/Sheet2!B$22 >0, 1-ABS(J71)/Sheet2!B$22,0) -> 0 | M71: 0 | N71: =IF(ABS(J71)<Sheet2!B$24/2, 1, 0) -> 0
A72: -442.5 | B72: 0 | C72: -0.107672155278412-2.31397343360445E-002i | D72: 0 | E72: 4.6405205586961+0.997290456678679i | F72: -0.00238288906972586-0.00107380412909183i | H72: 0 | J72: -442.5 | K72: =EXP(-((J72)^2/(Sheet2!B$21^2*0.360673760222241))) -> 2.645928868e-24 | L72: =IF(1-ABS(J72)/Sheet2!B$22 >0, 1-ABS(J72)/Sheet2!B$22,0) -> 0 | M72: 0 | N72: =IF(ABS(J72)<Sheet2!B$24/2, 1, 0) -> 0
A73: -441.5 | B73: 0 | C73: 7.73169977930789E-002+1.68644580593257E-002i | D73: 0 | E73: -3.93235292905074-0.857728610000261i | F73: -0.00144786297283695-0.000663170010464468i | H73: 0 | J73: -441.5 | K73: =EXP(-((J73)^2/(Sheet2!B$21^2*0.360673760222241))) -> 3.380822508e-24 | L73: =IF(1-ABS(J73)/Sheet2!B$22 >0, 1-ABS(J73)/Sheet2!B$22,0) -> 0 | M73: 0 | N73: =IF(ABS(J73)<Sheet2!B$24/2, 1, 0) -> 0
A74: -440.5 | B74: 0 | C74: -1.67605858655478E-002-3.70973864950821E-003i | D74: 0 | E74: 1.83087879803858+0.405241314004984i | F74: -0.000145916309694974-0.000067920818396484i | H74: 0 | J74: -440.5 | K74: =EXP(-((J74)^2/(Sheet2!B$21^2*0.360673760222241))) -> 4.31743446e-24 | L74: =IF(1-ABS(J74)/Sheet2!B$22 >0, 1-ABS(J74)/Sheet2!B$22,0) -> 0 | M74: 0 | N74: =IF(ABS(J74)<Sheet2!B$24/2, 1, 0) -> 0
A75: -439.5 | B75: 0 | C75: 3.77386438974143E-003+8.47449587860619E-004i | D75: 0 | E75: 0.868776655963941+0.195090322016126i | F75: 0.000015566580357964+7.36244419039708E-06i | H75: 0 | J75: -439.5 | K75: =EXP(-((J75)^2/(Sheet2!B$21^2*0.360673760222241))) -> 5.510465809e-24 | L75: =IF(1-ABS(J75)/Sheet2!B$22 >0, 1-ABS(J75)/Sheet2!B$22,0) -> 0 | M75: 0 | N75: =IF(ABS(J75)<Sheet2!B$24/2, 1, 0) -> 0
A76: -438.5 | B76: 0 | C76: -5.05479042395574E-002-1.15139233477057E-002i | D76: 0 | E76: -3.17955670619517-0.724247082951459i | F76: 0.000761905012555467+0.00036609172194812i | H76: 0 | J76: -438.5 | K76: =EXP(-((J76)^2/(Sheet2!B$21^2*0.360673760222241))) -> 7.029267107e-24 | L76: =IF(1-ABS(J76)/Sheet2!B$22 >0, 1-ABS(J76)/Sheet2!B$22,0) -> 0 | M76: 0 | N76: =IF(ABS(J76)<Sheet2!B$24/2, 1, 0) -> 0
A77: -437.5 | B77: 0 | C77: 9.16746373899896E-002+2.11779245720708E-002i | D77: 0 | E77: 4.28193034483246+0.989176509964772i | F77: 0.00185797853087605+0.000906823978657194i | H77: 0 | J77: -437.5 | K77: =EXP(-((J77)^2/(Sheet2!B$21^2*0.360673760222241))) -> 8.961711463e-24 | L77: =IF(1-ABS(J77)/Sheet2!B$22 >0, 1-ABS(J77)/Sheet2!B$22,0) -> 0 | M77: 0 | N77: =IF(ABS(J77)<Sheet2!B$24/2, 1, 0) -> 0
A78: -436.5 | B78: 0 | C78: -7.27021764328181E-002-1.70301800026404E-002i | D78: 0 | E78: -3.81319226981305-0.893224301195507i | F78: 0.00131007803270057+0.000649393507395948i | H78: 0 | J78: -436.5 | K78: =EXP(-((J78)^2/(Sheet2!B$21^2*0.360673760222241))) -> 1.14190781e-23 | L78: =IF(1-ABS(J78)/Sheet2!B$22 >0, 1-ABS(J78)/Sheet2!B$22,0) -> 0 | M78: 0 | N78: =IF(ABS(J78)<Sheet2!B$24/2, 1, 0) -> 0
A79: -435.5 | B79: 0 | C79: 1.97002980182474E-002+4.67851441637564E-003i | D79: 0 | E79: 1.9849583380135+0.471396736825994i | F79: 0.000184494171917991+0.000092866562003013i | H79: 0 | J79: -435.5 | K79: =EXP(-((J79)^2/(Sheet2!B$21^2*0.360673760222241))) -> 1.454220645e-23 | L79: =IF(1-ABS(J79)/Sheet2!B$22 >0, 1-ABS(J79)/Sheet2!B$22,0) -> 0 | M79: 0 | N79: =IF(ABS(J79)<Sheet2!B$24/2, 1, 0) -> 0
A80: -434.5 | B80: 0 | C80: -1.29287354775503E-003-3.11230621904638E-004i | D80: 0 | E80: 0.508502418430739+0.122410675199213i | F80: -3.09665687594272E-06-1.58261523928053E-06i | H80: 0 | J80: -434.5 | K80: =EXP(-((J80)^2/(Sheet2!B$21^2*0.360673760222241))) -> 1.850924672e-23 | L80: =IF(1-ABS(J80)/Sheet2!B$22 >0, 1-ABS(J80)/Sheet2!B$22,0) -> 0 | M80: 0 | N80: =IF(ABS(J80)<Sheet2!B$24/2, 1, 0) -> 0
A81: -433.5 | B81: 0 | C81: 3.78829839517983E-002+9.24253782757956E-003i | D81: 0 | E81: -2.75256185949699-0.671558954847008i | F81: -0.000490341738530167-0.000254406571091547i | H81: 0 | J81: -433.5 | K81: =EXP(-((J81)^2/(Sheet2!B$21^2*0.360673760222241))) -> 2.354541551e-23 | L81: =IF(1-ABS(J81)/Sheet2!B$22 >0, 1-ABS(J81)/Sheet2!B$22,0) -> 0 | M81: 0 | N81: =IF(ABS(J81)<Sheet2!B$24/2, 1, 0) -> 0
A82: -432.5 | B82: 0 | C82: -7.7876369567221E-002-1.9253296720519E-002i | D82: 0 | E82: 3.94655215516542+0.975702130038511i | F82: -0.0014427883576575-0.000759841396664037i | H82: 0 | J82: -432.5 | K82: =EXP(-((J82)^2/(Sheet2!B$21^2*0.360673760222241))) -> 2.993526792e-23 | L82: =IF(1-ABS(J82)/Sheet2!B$22 >0, 1-ABS(J82)/Sheet2!B$22,0) -> 0 | M82: 0 | N82: =IF(ABS(J82)<Sheet2!B$24/2, 1, 0) -> 0
A83: -431.5 | B83: 0 | C83: 6.80190326882019E-002+1.70378807332206E-002i | D83: 0 | E83: -3.68833384302995-0.923879532511282i | F83: -0.00117567975473632-0.000628413921218455i | H83: 0 | J83: -431.5 | K83: =EXP(-((J83)^2/(Sheet2!B$21^2*0.360673760222241))) -> 3.803812628e-23 | L83: =IF(1-ABS(J83)/Sheet2!B$22 >0, 1-ABS(J83)/Sheet2!B$22,0) -> 0 | M83: 0 | N83: =IF(ABS(J83)<Sheet2!B$24/2, 1, 0) -> 0
A84: -430.5 | B84: 0 | C84: -2.22260263713122E-002-5.63985274398784E-003i | D84: 0 | E84: 2.1083655456922+0.534997619887093i | F84: -0.000219216402121868-0.000118908712082007i | H84: 0 | J84: -430.5 | K84: =EXP(-((J84)^2/(Sheet2!B$21^2*0.360673760222241))) -> 4.830746617e-23 | L84: =IF(1-ABS(J84)/Sheet2!B$22 >0, 1-ABS(J84)/Sheet2!B$22,0) -> 0 | M84: 0 | N84: =IF(ABS(J84)<Sheet2!B$24/2, 1, 0) -> 0
A85: -429.5 | B85: 0 | C85: 1.82235882193088E-004+4.68379008636489E-005i | D85: 0 | E85: 0.190911436111711+4.90676743274184E-002i | F85: 1.62463435574048E-07+8.94189091827869E-08i | H85: 0 | J85: -429.5 | K85: =EXP(-((J85)^2/(Sheet2!B$21^2*0.360673760222241))) -> 6.131526039e-23 | L85: =IF(1-ABS(J85)/Sheet2!B$22 >0, 1-ABS(J85)/Sheet2!B$22,0) -> 0 | M85: 0 | N85: =IF(ABS(J85)<Sheet2!B$24/2, 1, 0) -> 0
A86: -428.5 | B86: 0 | C86: -2.79336862701205E-002-7.27089302542149E-003i | D86: 0 | E86: -2.36362798553902-0.615231590580619i | F86: 0.000307757797631762+0.000171856862347465i | H86: 0 | J86: -428.5 | K86: =EXP(-((J86)^2/(Sheet2!B$21^2*0.360673760222241))) -> 7.778253113e-23 | L86: =IF(1-ABS(J86)/Sheet2!B$22 >0, 1-ABS(J86)/Sheet2!B$22,0) -> 0 | M86: 0 | N86: =IF(ABS(J86)<Sheet2!B$24/2, 1, 0) -> 0
A87: -427.5 | B87: 0 | C87: 6.59096330268969E-002+1.73717795610275E-002i | D87: 0 | E87: 3.63069230386979+0.956940335732202i | F87: 0.00111336920408121+0.00063071586356745i | H87: 0 | J87: -427.5 | K87: =EXP(-((J87)^2/(Sheet2!B$21^2*0.360673760222241))) -> 9.861767104e-23 | L87: =IF(1-ABS(J87)/Sheet2!B$22 >0, 1-ABS(J87)/Sheet2!B$22,0) -> 0 | M87: 0 | N87: =IF(ABS(J87)<Sheet2!B$24/2, 1, 0) -> 0
A88: -426.5 | B88: 0 | C88: -6.33053174127197E-002-1.68932401526016E-002i | D88: 0 | E88: -3.55823881752523-0.949528180593029i | F88: 0.00104607415093637+0.000601101828647634i | H88: 0 | J88: -426.5 | K88: =EXP(-((J88)^2/(Sheet2!B$21^2*0.360673760222241))) -> 1.249644806e-22 | L88: =IF(1-ABS(J88)/Sheet2!B$22 >0, 1-ABS(J88)/Sheet2!B$22,0) -> 0 | M88: 0 | N88: =IF(ABS(J88)<Sheet2!B$24/2, 1, 0) -> 0
A89: -425.5 | B89: 0 | C89: 2.43129801055387E-002+6.56797048610015E-003i | D89: 0 | E89: 2.2051294794425+0.595699304492429i | F89: 0.000248503668566629+0.000144832253390077i | H89: 0 | J89: -425.5 | K89: =EXP(-((J89)^2/(Sheet2!B$21^2*0.360673760222241))) -> 1.582623503e-22 | L89: =IF(1-ABS(J89)/Sheet2!B$22 >0, 1-ABS(J89)/Sheet2!B$22,0) -> 0 | M89: 0 | N89: =IF(ABS(J89)<Sheet2!B$24/2, 1, 0) -> 0
A90: -424.5 | B90: 0 | C90: -4.02761159475741E-005-1.10129861469093E-005i | D90: 0 | E90: -8.97508951879349E-002-2.45412285229159E-002i | F90: 1.67227262561841E-08+9.88425365431154E-09i | H90: 0 | J90: -424.5 | K90: =EXP(-((J90)^2/(Sheet2!B$21^2*0.360673760222241))) -> 2.003216135e-22 | L90: =IF(1-ABS(J90)/Sheet2!B$22 >0, 1-ABS(J90)/Sheet2!B$22,0) -> 0 | M90: 0 | N90: =IF(ABS(J90)<Sheet2!B$24/2, 1, 0) -> 0
A91: -423.5 | B91: 0 | C91: 2.01517439508541E-002+5.57673860952765E-003i | D91: 0 | E91: -2.00757286048862-0.555570233019598i | F91: -0.000186789121392329-0.00011195709082527i | H91: 0 | J91: -423.5 | K91: =EXP(-((J91)^2/(Sheet2!B$21^2*0.360673760222241))) -> 2.534178395e-22 | L91: =IF(1-ABS(J91)/Sheet2!B$22 >0, 1-ABS(J91)/Sheet2!B$22,0) -> 0 | M91: 0 | N91: =IF(ABS(J91)<Sheet2!B$24/2, 1, 0) -> 0
A92: -422.5 | B92: 0 | C92: -5.54979744262702E-002-1.55418194745922E-002i | D92: 0 | E92: 3.33160545161842+0.93299279883473i | F92: -0.000851984742508788-0.000517792104896224i | H92: 0 | J92: -422.5 | K92: =EXP(-((J92)^2/(Sheet2!B$21^2*0.360673760222241))) -> 3.204097585e-22 | L92: =IF(1-ABS(J92)/Sheet2!B$22 >0, 1-ABS(J92)/Sheet2!B$22,0) -> 0 | M92: 0 | N92: =IF(ABS(J92)<Sheet2!B$24/2, 1, 0) -> 0
A93: -421.5 | B93: 0 | C93: 5.85978208480917E-002+1.66039517207865E-002i | D93: 0 | E93: -3.42338489942597-0.970031253194535i | F93: -0.000922482714674647-0.000568417175917408i | H93: 0 | J93: -421.5 | K93: =EXP(-((J93)^2/(Sheet2!B$21^2*0.360673760222241))) -> 4.048866535e-22 | L93: =IF(1-ABS(J93)/Sheet2!B$22 >0, 1-ABS(J93)/Sheet2!B$22,0) -> 0 | M93: 0 | N93: =IF(ABS(J93)<Sheet2!B$24/2, 1, 0) -> 0
A94: -420.5 | B94: 0 | C94: -2.59571429714807E-002-7.44117582572929E-003i | D94: 0 | E94: 2.27847067005375+0.653172842953768i | F94: -0.000271411074849501-0.000169545008696383i | H94: 0 | J94: -420.5 | K94: =EXP(-((J94)^2/(Sheet2!B$21^2*0.360673760222241))) -> 5.113524766e-22 | L94: =IF(1-ABS(J94)/Sheet2!B$22 >0, 1-ABS(J94)/Sheet2!B$22,0) -> 0 | M94: 0 | N94: =IF(ABS(J94)<Sheet2!B$24/2, 1, 0) -> 0
A95: -419.5 | B95: 0 | C95: 5.7120784004098E-004+1.65647204005576E-004i | D95: 0 | E95: -0.337996402359188-9.80171403295567E-002i | F95: -8.84149648465003E-07-5.59881590146914E-07i | H95: 0 | J95: -419.5 | K95: =EXP(-((J95)^2/(Sheet2!B$21^2*0.360673760222241))) -> 6.454557027e-22 | L95: =IF(1-ABS(J95)/Sheet2!B$22 >0, 1-ABS(J95)/Sheet2!B$22,0) -> 0 | M95: 0 | N95: =IF(ABS(J95)<Sheet2!B$24/2, 1, 0) -> 0
A96: -418.5 | B96: 0 | C96: -1.41185645260361E-002-4.14130769176198E-003i | D96: 0 | E96: -1.68039070016625-0.492898192229784i | F96: 0.000108417307272557+0.0000695901493176327i | H96: 0 | J96: -418.5 | K96: =EXP(-((J96)^2/(Sheet2!B$21^2*0.360673760222241))) -> 8.142761166e-22 | L96: =IF(1-ABS(J96)/Sheet2!B$22 >0, 1-ABS(J96)/Sheet2!B$22,0) -> 0 | M96: 0 | N96: =IF(ABS(J96)<Sheet2!B$24/2, 1, 0) -> 0
A97: -417.5 | B97: 0 | C97: 4.64283208979492E-002+1.37733561515196E-002i | D97: 0 | E97: 3.04723877954866+0.903989293123439i | F97: 0.000645136067091053+0.000419707049894455i | H97: 0 | J97: -417.5 | K97: =EXP(-((J97)^2/(Sheet2!B$21^2*0.360673760222241))) -> 1.026682424e-21 | L97: =IF(1-ABS(J97)/Sheet2!B$22 >0, 1-ABS(J97)/Sheet2!B$22,0) -> 0 | M97: 0 | N97: =IF(ABS(J97)<Sheet2!B$24/2, 1, 0) -> 0
A98: -416.5 | B98: 0 | C98: -5.39319538998723E-002-1.61795600232286E-002i | D98: 0 | E98: -3.28426411544012-0.985277642388941i | F98: 0.000805927110571722+0.000531379483878972i | H98: 0 | J98: -416.5 | K98: =EXP(-((J98)^2/(Sheet2!B$21^2*0.360673760222241))) -> 1.293777916e-21 | L98: =IF(1-ABS(J98)/Sheet2!B$22 >0, 1-ABS(J98)/Sheet2!B$22,0) -> 0 | M98: 0 | N98: =IF(ABS(J98)<Sheet2!B$24/2, 1, 0) -> 0
A99: -415.5 | B99: 0 | C99: 2.71682400622969E-002+8.24139552234586E-003i | D99: 0 | E99: 2.33101866411647+0.707106781186545i | F99: 0.000287510639980599+0.000192108467809541i | H99: 0 | J99: -415.5 | K99: =EXP(-((J99)^2/(Sheet2!B$21^2*0.360673760222241))) -> 1.629455545e-21 | L99: =IF(1-ABS(J99)/Sheet2!B$22 >0, 1-ABS(J99)/Sheet2!B$22,0) -> 0 | M99: 0 | N99: =IF(ABS(J99)<Sheet2!B$24/2, 1, 0) -> 0
A100: -414.5 | B100: 0 | C100: -1.55360574181211E-003-4.76491017687491E-004i | D100: 0 | E100: -0.557423670435694-0.1709618887603i | F100: 3.92277405324852E-06+2.65607372009023E-06i | H100: 0 | J100: -414.5 | K100: =EXP(-((J100)^2/(Sheet2!B$21^2*0.360673760222241))) -> 2.051088856e-21 | L100: =IF(1-ABS(J100)/Sheet2!B$22 >0, 1-ABS(J100)/Sheet2!B$22,0) -> 0 | M100: 0 | N100: =IF(ABS(J100)<Sheet2!B$24/2, 1, 0) -> 0
A101: -413.5 | B101: 0 | C101: 9.50743189174076E-003+2.94787251673764E-003i | D101: 0 | E101: -1.37894393589709-0.427555093430281i | F101: -0.000059249188218781-0.0000406495093075416i | H101: 0 | J101: -413.5 | K101: =EXP(-((J101)^2/(Sheet2!B$21^2*0.360673760222241))) -> 2.580391541e-21 | L101: =IF(1-ABS(J101)/Sheet2!B$22 >0, 1-ABS(J101)/Sheet2!B$22,0) -> 0 | M101: 0 | N101: =IF(ABS(J101)<Sheet2!B$24/2, 1, 0) -> 0
A102: -412.5 | B102: 0 | C102: -3.85323515764984E-002-1.20770380539062E-002i | D102: 0 | E102: 2.77605301017442+0.870086991108702i | F102: -0.000482298884406044-0.000335264978435377i | H102: 0 | J102: -412.5 | K102: =EXP(-((J102)^2/(Sheet2!B$21^2*0.360673760222241))) -> 3.244486117e-21 | L102: =IF(1-ABS(J102)/Sheet2!B$22 >0, 1-ABS(J102)/Sheet2!B$22,0) -> 0 | M102: 0 | N102: =IF(ABS(J102)<Sheet2!B$24/2, 1, 0) -> 0
A103: -411.5 | B103: 0 | C103: 4.93413583865543E-002+1.56312696547008E-002i | D103: 0 | E103: -3.1413805368517-0.995184726672192i | F103: -0.000697219910392467-0.000491037662595577i | H103: 0 | J103: -411.5 | K103: =EXP(-((J103)^2/(Sheet2!B$21^2*0.360673760222241))) -> 4.077231837e-21 | L103: =IF(1-ABS(J103)/Sheet2!B$22 >0, 1-ABS(J103)/Sheet2!B$22,0) -> 0 | M103: 0 | N103: =IF(ABS(J103)<Sheet2!B$24/2, 1, 0) -> 0
A104: -410.5 | B104: 0 | C104: -2.79652839954437E-002-8.9538599755042E-003i | D104: 0 | E104: 2.36496443928612+0.757208846506478i | F104: -0.000296784800999648-0.000211755604364154i | H104: 0 | J104: -410.5 | K104: =EXP(-((J104)^2/(Sheet2!B$21^2*0.360673760222241))) -> 5.120873755e-21 | L104: =IF(1-ABS(J104)/Sheet2!B$22 >0, 1-ABS(J104)/Sheet2!B$22,0) -> 0 | M104: 0 | N104: =IF(ABS(J104)<Sheet2!B$24/2, 1, 0) -> 0
A105: -409.5 | B105: 0 | C105: 2.81963354649452E-003+9.12330483119799E-004i | D105: 0 | E105: -0.750950537184728-0.242980179903261i | F105: -9.47863550742231E-06-6.85115066388662E-06i | H105: 0 | J105: -409.5 | K105: =EXP(-((J105)^2/(Sheet2!B$21^2*0.360673760222241))) -> 6.428089395e-21 | L105: =IF(1-ABS(J105)/Sheet2!B$22 >0, 1-ABS(J105)/Sheet2!B$22,0) -> 0 | M105: 0 | N105: =IF(ABS(J105)<Sheet2!B$24/2, 1, 0) -> 0
A106: -408.5 | B106: 0 | C106: -6.05819178049478E-003-1.98076232996489E-003i | D106: 0 | E106: -1.10074445540151-0.359895036534986i | F106: 0.000029778272405144+0.0000218031315217707i | H106: 0 | J106: -408.5 | K106: =EXP(-((J106)^2/(Sheet2!B$21^2*0.360673760222241))) -> 8.064527411e-21 | L106: =IF(1-ABS(J106)/Sheet2!B$22 >0, 1-ABS(J106)/Sheet2!B$22,0) -> 0 | M106: 0 | N106: =IF(ABS(J106)<Sheet2!B$24/2, 1, 0) -> 0
A107: -407.5 | B107: 0 | C107: 3.16737880983629E-002+1.04636062191591E-002i | D107: 0 | E107: 2.51689443951715+0.83146961230254i | F107: 0.000355097052684417+0.000263357923102986i | H107: 0 | J107: -407.5 | K107: =EXP(-((J107)^2/(Sheet2!B$21^2*0.360673760222241))) -> 1.011195465e-20 | L107: =IF(1-ABS(J107)/Sheet2!B$22 >0, 1-ABS(J107)/Sheet2!B$22,0) -> 0 | M107: 0 | N107: =IF(ABS(J107)<Sheet2!B$24/2, 1, 0) -> 0
A108: -406.5 | B108: 0 | C108: -4.48575515852509E-002-1.49717292158529E-002i | D108: 0 | E108: -2.99524795585435-0.999698818696197i | F108: 0.000596961348397132+0.000448440413293836i | H108: 0 | J108: -406.5 | K108: =EXP(-((J108)^2/(Sheet2!B$21^2*0.360673760222241))) -> 1.267215509e-20 | L108: =IF(1-ABS(J108)/Sheet2!B$22 >0, 1-ABS(J108)/Sheet2!B$22,0) -> 0 | M108: 0 | N108: =IF(ABS(J108)<Sheet2!B$24/2, 1, 0) -> 0
A109: -405.5 | B109: 0 | C109: 2.83736494642466E-002+9.56688104105834E-003i | D109: 0 | E109: 2.38216915706014+0.80320753148064i | F109: 0.000299533208610034+0.000227899289452735i | H109: 0 | J109: -405.5 | K109: =EXP(-((J109)^2/(Sheet2!B$21^2*0.360673760222241))) -> 1.58717576e-20 | L109: =IF(1-ABS(J109)/Sheet2!B$22 >0, 1-ABS(J109)/Sheet2!B$22,0) -> 0 | M109: 0 | N109: =IF(ABS(J109)<Sheet2!B$24/2, 1, 0) -> 0
A110: -404.5 | B110: 0 | C110: -4.24103216707248E-003-1.44447498180926E-003i | D110: 0 | E110: -0.920981234018186-0.313681740398893i | F110: 0.0000172640280624232+0.0000133033435125504i | H110: 0 | J110: -404.5 | K110: =EXP(-((J110)^2/(Sheet2!B$21^2*0.360673760222241))) -> 1.986820996e-20 | L110: =IF(1-ABS(J110)/Sheet2!B$22 >0, 1-ABS(J110)/Sheet2!B$22,0) -> 0 | M110: 0 | N110: =IF(ABS(J110)<Sheet2!B$24/2, 1, 0) -> 0
A111: -403.5 | B111: 0 | C111: 3.55995310409485E-003+1.22470432841767E-003i | D111: 0 | E111: -0.843795366672942-0.290284677254459i | F111: -0.0000132417951705066-0.0000103339983786316i | H111: 0 | J111: -403.5 | K111: =EXP(-((J111)^2/(Sheet2!B$21^2*0.360673760222241))) -> 2.48571673e-20 | L111: =IF(1-ABS(J111)/Sheet2!B$22 >0, 1-ABS(J111)/Sheet2!B$22,0) -> 0 | M111: 0 | N111: =IF(ABS(J111)<Sheet2!B$24/2, 1, 0) -> 0
A112: -402.5 | B112: 0 | C112: -2.57395730258481E-002-8.94340247197652E-003i | D112: 0 | E112: 2.26890162968085+0.788346427626597i | F112: -0.000256750298980132-0.000202917004435603i | H112: 0 | J112: -402.5 | K112: =EXP(-((J112)^2/(Sheet2!B$21^2*0.360673760222241))) -> 3.108162426e-20 | L112: =IF(1-ABS(J112)/Sheet2!B$22 >0, 1-ABS(J112)/Sheet2!B$22,0) -> 0 | M112: 0 | N112: =IF(ABS(J112)<Sheet2!B$24/2, 1, 0) -> 0
A113: -401.5 | B113: 0 | C113: 4.0509609742762E-002+1.42147946381769E-002i | D113: 0 | E113: -2.84638752606716-0.998795456205162i | F113: -0.000505541877810729-0.000404608141437141i | H113: 0 | J113: -401.5 | K113: =EXP(-((J113)^2/(Sheet2!B$21^2*0.360673760222241))) -> 3.884319567e-20 | L113: =IF(1-ABS(J113)/Sheet2!B$22 >0, 1-ABS(J113)/Sheet2!B$22,0) -> 0 | M113: 0 | N113: =IF(ABS(J113)<Sheet2!B$24/2, 1, 0) -> 0
A114: -400.5 | B114: 0 | C114: -2.84230730975518E-002-1.00716809385697E-002i | D114: 0 | E114: 2.38424298667468+0.844853565249697i | F114: -0.000296292085717858-0.000240133346418146i | H114: 0 | J114: -400.5 | K114: =EXP(-((J114)^2/(Sheet2!B$21^2*0.360673760222241))) -> 4.851604332e-20 | L114: =IF(1-ABS(J114)/Sheet2!B$22 >0, 1-ABS(J114)/Sheet2!B$22,0) -> 0 | M114: 0 | N114: =IF(ABS(J114)<Sheet2!B$24/2, 1, 0) -> 0
A115: -399.5 | B115: 0 | C115: 5.71945653851197E-003+2.04645427228936E-003i | D115: 0 | E115: -1.06952854459446-0.382683432365091i | F115: -0.0000266698894120404-0.0000218874125942074i | H115: 0 | J115: -399.5 | K115: =EXP(-((J115)^2/(Sheet2!B$21^2*0.360673760222241))) -> 6.056405899e-20 | L115: =IF(1-ABS(J115)/Sheet2!B$22 >0, 1-ABS(J115)/Sheet2!B$22,0) -> 0 | M115: 0 | N115: =IF(ABS(J115)<Sheet2!B$24/2, 1, 0) -> 0
A116: -398.5 | B116: 0 | C116: -1.83905713765017E-003-6.64396673254259E-004i | D116: 0 | E116: -0.606474589352341-0.219101240156868i | F116: 4.84885643642886E-06+4.02939699578715E-06i | H116: 0 | J116: -398.5 | K116: =EXP(-((J116)^2/(Sheet2!B$21^2*0.360673760222241))) -> 7.556205289e-20 | L116: =IF(1-ABS(J116)/Sheet2!B$22 >0, 1-ABS(J116)/Sheet2!B$22,0) -> 0 | M116: 0 | N116: =IF(ABS(J116)<Sheet2!B$24/2, 1, 0) -> 0
A117: -397.5 | B117: 0 | C117: 2.06336641944307E-002+7.52597451385778E-003i | D117: 0 | E117: 2.03143615181119+0.740951125354955i | F117: 0.000181697960517315+0.0001528853670506i | H117: 0 | J117: -397.5 | K117: =EXP(-((J117)^2/(Sheet2!B$21^2*0.360673760222241))) -> 9.42218656e-20 | L117: =IF(1-ABS(J117)/Sheet2!B$22 >0, 1-ABS(J117)/Sheet2!B$22,0) -> 0 | M117: 0 | N117: =IF(ABS(J117)<Sheet2!B$24/2, 1, 0) -> 0
A118: -396.5 | B118: 0 | C118: -3.63238944999651E-002-1.33752763899188E-002i | D118: 0 | E118: -2.69532537924315-0.992479534598705i | F118: 0.000423150133160555+0.000360507219081388i | H118: 0 | J118: -396.5 | K118: =EXP(-((J118)^2/(Sheet2!B$21^2*0.360673760222241))) -> 1.174245287e-19 | L118: =IF(1-ABS(J118)/Sheet2!B$22 >0, 1-ABS(J118)/Sheet2!B$22,0) -> 0 | M118: 0 | N118: =IF(ABS(J118)<Sheet2!B$24/2, 1, 0) -> 0
A119: -395.5 | B119: 0 | C119: 2.81462250116266E-002+1.04622451940253E-002i | D119: 0 | E119: 2.37260300141534+0.881921264348355i | F119: 0.000287764707158298+0.000248227543488873i | H119: 0 | J119: -395.5 | K119: =EXP(-((J119)^2/(Sheet2!B$21^2*0.360673760222241))) -> 1.462598516e-19 | L119: =IF(1-ABS(J119)/Sheet2!B$22 >0, 1-ABS(J119)/Sheet2!B$22,0) -> 0 | M119: 0 | N119: =IF(ABS(J119)<Sheet2!B$24/2, 1, 0) -> 0
A120: -394.5 | B120: 0 | C120: -7.17966704639122E-003-2.6938561488921E-003i | D120: 0 | E120: -1.19830438924239-0.449611329654608i | F120: 0.0000369611914499396+0.0000322805964720517i | H120: 0 | J120: -394.5 | K120: =EXP(-((J120)^2/(Sheet2!B$21^2*0.360673760222241))) -> 1.820751209e-19 | L120: =IF(1-ABS(J120)/Sheet2!B$22 >0, 1-ABS(J120)/Sheet2!B$22,0) -> 0 | M120: 0 | N120: =IF(ABS(J120)<Sheet2!B$24/2, 1, 0) -> 0
A121: -393.5 | B121: 0 | C121: 7.50579441008107E-004+2.84252083264976E-004i | D121: 0 | E121: -0.387447916758935-0.146730474455358i | F121: -1.24550998869142E-06-0.0000011013287749548i | H121: 0 | J121: -393.5 | K121: =EXP(-((J121)^2/(Sheet2!B$21^2*0.360673760222241))) -> 2.265349744e-19 | L121: =IF(1-ABS(J121)/Sheet2!B$22 >0, 1-ABS(J121)/Sheet2!B$22,0) -> 0 | M121: 0 | N121: =IF(ABS(J121)<Sheet2!B$24/2, 1, 0) -> 0
A122: -392.5 | B122: 0 | C122: -1.62726273208355E-002-6.21976031351124E-003i | D122: 0 | E122: 1.80403033903683+0.68954054473706i | F122: -0.000125337682339572-0.000112206363071118i | H122: 0 | J122: -392.5 | K122: =EXP(-((J122)^2/(Sheet2!B$21^2*0.360673760222241))) -> 2.8169497e-19 | L122: =IF(1-ABS(J122)/Sheet2!B$22 >0, 1-ABS(J122)/Sheet2!B$22,0) -> 0 | M122: 0 | N122: =IF(ABS(J122)<Sheet2!B$24/2, 1, 0) -> 0
A123: -391.5 | B123: 0 | C123: 3.23238253955254E-002+1.24686753597706E-002i | D123: 0 | E123: -2.5425902302778-0.980785280403232i | F123: -0.000349785746984394-0.000317027321542569i | H123: 0 | J123: -391.5 | K123: =EXP(-((J123)^2/(Sheet2!B$21^2*0.360673760222241))) -> 3.500919291e-19 | L123: =IF(1-ABS(J123)/Sheet2!B$22 >0, 1-ABS(J123)/Sheet2!B$22,0) -> 0 | M123: 0 | N123: =IF(ABS(J123)<Sheet2!B$24/2, 1, 0) -> 0
A124: -390.5 | B124: 0 | C124: -2.75776411555494E-002-1.07351819997533E-002i | D124: 0 | E124: 2.34851617646301+0.914209755703534i | F124: -0.000274761641245362-0.000252117485836948i | H124: 0 | J124: -390.5 | K124: =EXP(-((J124)^2/(Sheet2!B$21^2*0.360673760222241))) -> 4.348548132e-19 | L124: =IF(1-ABS(J124)/Sheet2!B$22 >0, 1-ABS(J124)/Sheet2!B$22,0) -> 0 | M124: 0 | N124: =IF(ABS(J124)<Sheet2!B$24/2, 1, 0) -> 0
A125: -389.5 | B125: 0 | C125: 8.56462816601154E-003+3.36425712321097E-003i | D125: 0 | E125: -1.30878784881332-0.514102744193228i | F125: -0.0000473985372703292-0.0000440309884314166i | H125: 0 | J125: -389.5 | K125: =EXP(-((J125)^2/(Sheet2!B$21^2*0.360673760222241))) -> 5.3984072e-19 | L125: =IF(1-ABS(J125)/Sheet2!B$22 >0, 1-ABS(J125)/Sheet2!B$22,0) -> 0 | M125: 0 | N125: =IF(ABS(J125)<Sheet2!B$24/2, 1, 0) -> 0
A126: -388.5 | B126: 0 | C126: -1.72242759775909E-004-6.82690961215876E-005i | D126: 0 | E126: -0.185603211056368-7.35645635996655E-002i | F126: 1.34733115160456E-07+1.26709634560996E-07i | H126: 0 | J126: -388.5 | K126: =EXP(-((J126)^2/(Sheet2!B$21^2*0.360673760222241))) -> 6.69801591e-19 | L126: =IF(1-ABS(J126)/Sheet2!B$22 >0, 1-ABS(J126)/Sheet2!B$22,0) -> 0 | M126: 0 | N126: =IF(ABS(J126)<Sheet2!B$24/2, 1, 0) -> 0
A127: -387.5 | B127: 0 | C127: 1.25824885114406E-002+5.03184031344107E-003i | D127: 0 | E127: 1.58634728300173+0.634393284163651i | F127: 0.0000838401538084667+0.0000798224620972501i | H127: 0 | J127: -387.5 | K127: =EXP(-((J127)^2/(Sheet2!B$21^2*0.360673760222241))) -> 8.305884459e-19 | L127: =IF(1-ABS(J127)/Sheet2!B$22 >0, 1-ABS(J127)/Sheet2!B$22,0) -> 0 | M127: 0 | N127: =IF(ABS(J127)<Sheet2!B$24/2, 1, 0) -> 0
A128: -386.5 | B128: 0 | C128: -2.85297007934815E-002-1.15109123659793E-002i | D128: 0 | E128: -2.38871098266234-0.963776065795457i | F128: 0.0002852763389183+0.000274962427890708i | H128: 0 | J128: -386.5 | K128: =EXP(-((J128)^2/(Sheet2!B$21^2*0.360673760222241))) -> 1.029401442e-18 | L128: =IF(1-ABS(J128)/Sheet2!B$22 >0, 1-ABS(J128)/Sheet2!B$22,0) -> 0 | M128: 0 | N128: =IF(ABS(J128)<Sheet2!B$24/2, 1, 0) -> 0
A129: -385.5 | B129: 0 | C129: 2.6752889153638E-002+1.08895766822278E-002i | D129: 0 | E129: 2.31313160687341+0.941544065183048i | F129: 0.000258149685894768+0.000251890240091203i | H129: 0 | J129: -385.5 | K129: =EXP(-((J129)^2/(Sheet2!B$21^2*0.360673760222241))) -> 1.275095857e-18 | L129: =IF(1-ABS(J129)/Sheet2!B$22 >0, 1-ABS(J129)/Sheet2!B$22,0) -> 0 | M129: 0 | N129: =IF(ABS(J129)<Sheet2!B$24/2, 1, 0) -> 0
A130: -384.5 | B130: 0 | C130: -9.83190118151207E-003-4.0372123532286E-003i | D130: 0 | E130: -1.4022768044455-0.575808191417887i | F130: 0.0000573119351347609+0.0000566128923753957i | H130: 0 | J130: -384.5 | K130: =EXP(-((J130)^2/(Sheet2!B$21^2*0.360673760222241))) -> 1.578556291e-18 | L130: =IF(1-ABS(J130)/Sheet2!B$22 >0, 1-ABS(J130)/Sheet2!B$22,0) -> 0 | M130: 0 | N130: =IF(ABS(J130)<Sheet2!B$24/2, 1, 0) -> 0
A131: -383.5 | B131: 0 | C131: 0 | D131: 0 | E131: 0 | F131: 0 | H131: =IMABS(G131) -> 0 | J131: -383.5 | K131: =EXP(-((J131)^2/(Sheet2!B$21^2*0.360673760222241))) -> 1.953154003e-18 | L131: =IF(1-ABS(J131)/Sheet2!B$22 >0, 1-ABS(J131)/Sheet2!B$22,0) -> 0 | M131: 0 | N131: =IF(ABS(J131)<Sheet2!B$24/2, 1, 0) -> 0
A132: -382.5 | B132: 0 | C132: -9.49648419258886E-003-3.96774968502329E-003i | D132: 0 | E132: 1.37814978812851+0.575808191417831i | F132: =IMPRODUCT(C132,E132,D$1027) -> -0.0000540145745392508-0.0000546815338776221i | H132: 0 | J132: -382.5 | K132: =EXP(-((J132)^2/(Sheet2!B$21^2*0.360673760222241))) -> 2.415305547e-18 | L132: =IF(1-ABS(J132)/Sheet2!B$22 >0, 1-ABS(J132)/Sheet2!B$22,0) -> 0 | M132: 0 | N132: =IF(ABS(J132)<Sheet2!B$24/2, 1, 0) -> 0
A133: =A132+1 -> -381.5 | B133: 0 | C133: 2.49585687304575E-002+1.05180562914511E-002i | D133: 0 | E133: -2.2342143464964-0.941544065183019i | F133: -0.000229297894235639-0.000234995922636208i | H133: 0 | J133: =J132+1 -> -381.5 | K133: =EXP(-((J133)^2/(Sheet2!B$21^2*0.360673760222241))) -> 2.98515472e-18 | L133: =IF(1-ABS(J133)/Sheet2!B$22 >0, 1-ABS(J133)/Sheet2!B$22,0) -> 0 | M133: 0 | N133: =IF(ABS(J133)<Sheet2!B$24/2, 1, 0) -> 0
A134: -380.5 | B134: 0 | C134: -2.57078903210101E-002-1.09268343256492E-002i | D134: 0 | E134: 2.26750481018262+0.963776065795433i | F134: -0.000238808717822825-0.000247766493934809i | H134: 0 | J134: -380.5 | K134: =EXP(-((J134)^2/(Sheet2!B$21^2*0.360673760222241))) -> 3.687404557e-18 | L134: =IF(1-ABS(J134)/Sheet2!B$22 >0, 1-ABS(J134)/Sheet2!B$22,0) -> 0 | M134: 0 | N134: =IF(ABS(J134)<Sheet2!B$24/2, 1, 0) -> 0
A135: -379.5 | B135: 0 | C135: 1.09509270272772E-002+4.69428033545936E-003i | D135: 0 | E135: -1.47992750006728-0.634393284163643i | F135: -0.0000661427907005034-0.0000694719456147107i | H135: 0 | J135: -379.5 | K135: =EXP(-((J135)^2/(Sheet2!B$21^2*0.360673760222241))) -> 4.552331783e-18 | L135: =IF(1-ABS(J135)/Sheet2!B$22 >0, 1-ABS(J135)/Sheet2!B$22,0) -> 0 | M135: 0 | N135: =IF(ABS(J135)<Sheet2!B$24/2, 1, 0) -> 0
A136: -378.5 | B136: 0 | C136: -1.44788348686142E-004-6.25922369236708E-005i | D136: 0 | E136: 0.170169532339596+7.35645635996657E-002i | F136: -1.00169974950632E-07-1.06512916854013E-07i | H136: 0 | J136: -378.5 | K136: =EXP(-((J136)^2/(Sheet2!B$21^2*0.360673760222241))) -> 5.617022991e-18 | L136: =IF(1-ABS(J136)/Sheet2!B$22 >0, 1-ABS(J136)/Sheet2!B$22,0) -> 0 | M136: 0 | N136: =IF(ABS(J136)<Sheet2!B$24/2, 1, 0) -> 0
A137: -377.5 | B137: 0 | C137: 6.95345919521449E-003+3.03134508961701E-003i | D137: 0 | E137: 1.17927598086376+0.514102744193219i | F137: 0.0000332081229183198+0.0000357479245389499i | H137: 0 | J137: -377.5 | K137: =EXP(-((J137)^2/(Sheet2!B$21^2*0.360673760222241))) -> 6.926880129e-18 | L137: =IF(1-ABS(J137)/Sheet2!B$22 >0, 1-ABS(J137)/Sheet2!B$22,0) -> 0 | M137: 0 | N137: =IF(ABS(J137)<Sheet2!B$24/2, 1, 0) -> 0
A138: -376.5 | B138: 0 | C138: -2.16241483191427E-002-9.50605580193656E-003i | D138: 0 | E138: -2.07962248108333-0.914209755703523i | F138: 0.000181397680131885+0.0001976900735214i | H138: 0 | J138: -376.5 | K138: =EXP(-((J138)^2/(Sheet2!B$21^2*0.360673760222241))) -> 8.537452863e-18 | L138: =IF(1-ABS(J138)/Sheet2!B$22 >0, 1-ABS(J138)/Sheet2!B$22,0) -> 0 | M138: 0 | N138: =IF(ABS(J138)<Sheet2!B$24/2, 1, 0) -> 0
A139: -375.5 | B139: 0 | C139: 2.44783508948941E-002+1.08505067020299E-002i | D139: 0 | E139: 2.21261613909389+0.980785280403225i | F139: 0.000217595884950893+0.000240080062462575i | H139: 0 | J139: -375.5 | K139: =EXP(-((J139)^2/(Sheet2!B$21^2*0.360673760222241))) -> 1.051666746e-17 | L139: =IF(1-ABS(J139)/Sheet2!B$22 >0, 1-ABS(J139)/Sheet2!B$22,0) -> 0 | M139: 0 | N139: =IF(ABS(J139)<Sheet2!B$24/2, 1, 0) -> 0
A140: -374.5 | B140: 0 | C140: -1.19009290026194E-002-5.31906431953189E-003i | D140: 0 | E140: -1.54278507917451-0.689540544737063i | F140: 0.0000734643259258745+0.0000820617306734331i | H140: 0 | J140: -374.5 | K140: =EXP(-((J140)^2/(Sheet2!B$21^2*0.360673760222241))) -> 1.294753639e-17 | L140: =IF(1-ABS(J140)/Sheet2!B$22 >0, 1-ABS(J140)/Sheet2!B$22,0) -> 0 | M140: 0 | N140: =IF(ABS(J140)<Sheet2!B$24/2, 1, 0) -> 0
A141: -373.5 | B141: 0 | C141: 5.30112639342804E-004+2.38885287713267E-004i | D141: 0 | E141: 0.325611006982319+0.146730474455361i | F141: 6.87793793519461E-07+7.77836790855656E-07i | H141: 0 | J141: -373.5 | K141: =EXP(-((J141)^2/(Sheet2!B$21^2*0.360673760222241))) -> 1.593145037e-17 | L141: =IF(1-ABS(J141)/Sheet2!B$22 >0, 1-ABS(J141)/Sheet2!B$22,0) -> 0 | M141: 0 | N141: =IF(ABS(J141)<Sheet2!B$24/2, 1, 0) -> 0
A142: -372.5 | B142: 0 | C142: -4.89673808625609E-003-2.22472167584691E-003i | D142: 0 | E142: 0.989619935758384+0.4496113296546i | F142: -0.0000192282477977872-0.0000220162892193191i | H142: 0 | J142: -372.5 | K142: =EXP(-((J142)^2/(Sheet2!B$21^2*0.360673760222241))) -> 1.959217565e-17 | L142: =IF(1-ABS(J142)/Sheet2!B$22 >0, 1-ABS(J142)/Sheet2!B$22,0) -> 0 | M142: 0 | N142: =IF(ABS(J142)<Sheet2!B$24/2, 1, 0) -> 0
A143: -371.5 | B143: 0 | C143: 1.85368014895147E-002+8.49047946415322E-003i | D143: 0 | E143: -1.92545067397291-0.881921264348347i | F143: -0.000141018812686692-0.00016347999406607i | H143: 0 | J143: -371.5 | K143: =EXP(-((J143)^2/(Sheet2!B$21^2*0.360673760222241))) -> 2.408070472e-17 | L143: =IF(1-ABS(J143)/Sheet2!B$22 >0, 1-ABS(J143)/Sheet2!B$22,0) -> 0 | M143: 0 | N143: =IF(ABS(J143)<Sheet2!B$24/2, 1, 0) -> 0
A144: -370.5 | B144: 0 | C144: -2.30992742007028E-002-1.06661019240274E-002i | D144: 0 | E144: 2.14938475851574+0.992479534598698i | F144: -0.000195316700131127-0.000229255569082806i | H144: 0 | J144: -370.5 | K144: =EXP(-((J144)^2/(Sheet2!B$21^2*0.360673760222241))) -> 2.95811392e-17 | L144: =IF(1-ABS(J144)/Sheet2!B$22 >0, 1-ABS(J144)/Sheet2!B$22,0) -> 0 | M144: 0 | N144: =IF(ABS(J144)<Sheet2!B$24/2, 1, 0) -> 0
A145: -369.5 | B145: 0 | C145: 1.26692522448004E-002+5.89725701490832E-003i | D145: 0 | E145: -1.59180729014503-0.74095112535495i | F145: -0.0000789871443112794-0.0000938729670819028i | H145: 0 | J145: -369.5 | K145: =EXP(-((J145)^2/(Sheet2!B$21^2*0.360673760222241))) -> 3.631782016e-17 | L145: =IF(1-ABS(J145)/Sheet2!B$22 >0, 1-ABS(J145)/Sheet2!B$22,0) -> 0 | M145: 0 | N145: =IF(ABS(J145)<Sheet2!B$24/2, 1, 0) -> 0
A146: -368.5 | B146: 0 | C146: -1.09021998284231E-003-5.11548607670639E-004i | D146: 0 | E146: 0.466951813966235+0.219101240156865i | F146: -0.0000019849963213465-2.38868550284126E-06i | H146: 0 | J146: -368.5 | K146: =EXP(-((J146)^2/(Sheet2!B$21^2*0.360673760222241))) -> 4.456396542e-17 | L146: =IF(1-ABS(J146)/Sheet2!B$22 >0, 1-ABS(J146)/Sheet2!B$22,0) -> 0 | M146: 0 | N146: =IF(ABS(J146)<Sheet2!B$24/2, 1, 0) -> 0
A147: -367.5 | B147: 0 | C147: 3.2733446150646E-003+1.5481767022791E-003i | D147: 0 | E147: 0.809116136912959+0.382683432365086i | F147: 0.0000102802718769504+0.000012526547526067i | H147: 0 | J147: -367.5 | K147: =EXP(-((J147)^2/(Sheet2!B$21^2*0.360673760222241))) -> 5.465212579e-17 | L147: =IF(1-ABS(J147)/Sheet2!B$22 >0, 1-ABS(J147)/Sheet2!B$22,0) -> 0 | M147: 0 | N147: =IF(ABS(J147)<Sheet2!B$24/2, 1, 0) -> 0
A148: -366.5 | B148: 0 | C148: -1.57035540169952E-002-7.48626885069263E-003i | D148: 0 | E148: -1.77220506809999-0.844853565249701i | F148: 0.000107525585435877+0.000132672035983531i | H148: 0 | J148: -366.5 | K148: =EXP(-((J148)^2/(Sheet2!B$21^2*0.360673760222241))) -> 6.698683612e-17 | L148: =IF(1-ABS(J148)/Sheet2!B$22 >0, 1-ABS(J148)/Sheet2!B$22,0) -> 0 | M148: 0 | N148: =IF(ABS(J148)<Sheet2!B$24/2, 1, 0) -> 0
A149: -365.5 | B149: 0 | C149: 2.16045370418494E-002+1.03808769298078E-002i | D149: 0 | E149: 2.07867924614872+0.998795456205166i | F149: 0.000172702650313133+0.000215785134308154i | H149: 0 | J149: -365.5 | K149: =EXP(-((J149)^2/(Sheet2!B$21^2*0.360673760222241))) -> 8.205991234e-17 | L149: =IF(1-ABS(J149)/Sheet2!B$22 >0, 1-ABS(J149)/Sheet2!B$22,0) -> 0 | M149: 0 | N149: =IF(ABS(J149)<Sheet2!B$24/2, 1, 0) -> 0
A150: -364.5 | B150: 0 | C150: -1.3250014652713E-002-6.41667857944357E-003i | D150: 0 | E150: -1.62788295971853-0.788346427626602i | F150: 0.0000825545371691992+0.000104456017174668i | H150: 0 | J150: -364.5 | K150: =EXP(-((J150)^2/(Sheet2!B$21^2*0.360673760222241))) -> 1.00468937e-16 | L150: =IF(1-ABS(J150)/Sheet2!B$22 >0, 1-ABS(J150)/Sheet2!B$22,0) -> 0 | M150: 0 | N150: =IF(ABS(J150)<Sheet2!B$24/2, 1, 0) -> 0
A151: -363.5 | B151: 0 | C151: 1.76869773815769E-003+8.63248683073742E-004i | D151: 0 | E151: 0.594760075687173+0.290284677254462i | F151: 0.00000400681467629+5.13425852081797E-06i | H151: 0 | J151: -363.5 | K151: =EXP(-((J151)^2/(Sheet2!B$21^2*0.360673760222241))) -> 1.229395848e-16 | L151: =IF(1-ABS(J151)/Sheet2!B$22 >0, 1-ABS(J151)/Sheet2!B$22,0) -> 0 | M151: 0 | N151: =IF(ABS(J151)<Sheet2!B$24/2, 1, 0) -> 0
A152: -362.5 | B152: 0 | C152: -2.03347807035765E-003-1.00021643801022E-003i | D152: 0 | E152: 0.63772691182912+0.313681740398885i | F152: -4.91527028515402E-06-6.37864940172867E-06i | H152: 0 | J152: -362.5 | K152: =EXP(-((J152)^2/(Sheet2!B$21^2*0.360673760222241))) -> 1.503525689e-16 | L152: =IF(1-ABS(J152)/Sheet2!B$22 >0, 1-ABS(J152)/Sheet2!B$22,0) -> 0 | M152: 0 | N152: =IF(ABS(J152)<Sheet2!B$24/2, 1, 0) -> 0
A153: -361.5 | B153: 0 | C153: 1.31281639875419E-002+6.50750890003559E-003i | D153: 0 | E153: -1.62038044838476-0.803207531480636i | F153: -0.0000802287004445797-0.00010544640189307i | H153: 0 | J153: -361.5 | K153: =EXP(-((J153)^2/(Sheet2!B$21^2*0.360673760222241))) -> 1.83776146e-16 | L153: =IF(1-ABS(J153)/Sheet2!B$22 >0, 1-ABS(J153)/Sheet2!B$22,0) -> 0 | M153: 0 | N153: =IF(ABS(J153)<Sheet2!B$24/2, 1, 0) -> 0
A154: -360.5 | B154: 0 | C154: -2.00265207561946E-002-1.00036141832693E-002i | D154: 0 | E154: 2.00132559850662+0.999698818696191i | F154: -0.000150394936783448-0.000200204891425616i | H154: 0 | J154: -360.5 | K154: =EXP(-((J154)^2/(Sheet2!B$21^2*0.360673760222241))) -> 2.245053023e-16 | L154: =IF(1-ABS(J154)/Sheet2!B$22 >0, 1-ABS(J154)/Sheet2!B$22,0) -> 0 | M154: 0 | N154: =IF(ABS(J154)<Sheet2!B$24/2, 1, 0) -> 0
A155: -359.5 | B155: 0 | C155: 1.36429829077368E-002+6.86730049483949E-003i | D155: 0 | E155: -1.65184641584719-0.831469612302542i | F155: -0.0000841308036880013-0.000113437257089462i | H155: 0 | J155: -359.5 | K155: =EXP(-((J155)^2/(Sheet2!B$21^2*0.360673760222241))) -> 2.741089659e-16 | L155: =IF(1-ABS(J155)/Sheet2!B$22 >0, 1-ABS(J155)/Sheet2!B$22,0) -> 0 | M155: 0 | N155: =IF(ABS(J155)<Sheet2!B$24/2, 1, 0) -> 0
A156: -358.5 | B156: 0 | C156: -2.51737495347613E-003-1.27683509972589E-003i | D156: 0 | E156: 0.709559716088069+0.359895036534988i | F156: -6.63350621205367E-06-0.0000090599075085317i | H156: 0 | J156: -358.5 | K156: =EXP(-((J156)^2/(Sheet2!B$21^2*0.360673760222241))) -> 3.344868556e-16 | L156: =IF(1-ABS(J156)/Sheet2!B$22 >0, 1-ABS(J156)/Sheet2!B$22,0) -> 0 | M156: 0 | N156: =IF(ABS(J156)<Sheet2!B$24/2, 1, 0) -> 0
A157: -357.5 | B157: 0 | C157: 1.13017888353891E-003+5.77603007326165E-004i | D157: 0 | E157: 0.475432199906109+0.24298017990326i | F157: 1.98488675127779E-06+2.74611068445306E-06i | H157: 0 | J157: -357.5 | K157: =EXP(-((J157)^2/(Sheet2!B$21^2*0.360673760222241))) -> 4.079378913e-16 | L157: =IF(1-ABS(J157)/Sheet2!B$22 >0, 1-ABS(J157)/Sheet2!B$22,0) -> 0 | M157: 0 | N157: =IF(ABS(J157)<Sheet2!B$24/2, 1, 0) -> 0
A158: -356.5 | B158: 0 | C158: -1.08112351019516E-002-5.56721940422555E-003i | D158: 0 | E158: -1.47045809882151-0.757208846506478i | F158: 0.0000584096021530301+0.0000818636286085942i | H158: 0 | J158: -356.5 | K158: =EXP(-((J158)^2/(Sheet2!B$21^2*0.360673760222241))) -> 4.972424681e-16 | L158: =IF(1-ABS(J158)/Sheet2!B$22 >0, 1-ABS(J158)/Sheet2!B$22,0) -> 0 | M158: 0 | N158: =IF(ABS(J158)<Sheet2!B$24/2, 1, 0) -> 0
A159: -355.5 | B159: 0 | C159: 1.83957917571091E-002+9.54438493747094E-003i | D159: 0 | E159: 1.91811322695549+0.995184726672191i | F159: 0.000128933926871893+0.000183072109917175i | H159: 0 | J159: -355.5 | K159: =EXP(-((J159)^2/(Sheet2!B$21^2*0.360673760222241))) -> 6.057613445e-16 | L159: =IF(1-ABS(J159)/Sheet2!B$22 >0, 1-ABS(J159)/Sheet2!B$22,0) -> 0 | M159: 0 | N159: =IF(ABS(J159)<Sheet2!B$24/2, 1, 0) -> 0
A160: -354.5 | B160: 0 | C160: -1.38526138744003E-002-7.24125000975141E-003i | D160: 0 | E160: -1.66448874279128-0.87008699110871i | F160: 0.0000837850120966154+0.000120529791249681i | H160: 0 | J160: -354.5 | K160: =EXP(-((J160)^2/(Sheet2!B$21^2*0.360673760222241))) -> 7.375544285e-16 | L160: =IF(1-ABS(J160)/Sheet2!B$22 >0, 1-ABS(J160)/Sheet2!B$22,0) -> 0 | M160: 0 | N160: =IF(ABS(J160)<Sheet2!B$24/2, 1, 0) -> 0
A161: -353.5 | B161: 0 | C161: 3.29544092474369E-003+1.73553690088534E-003i | D161: 0 | E161: 0.811842463133304+0.427555093430287i | F161: 9.66670617822234E-06+0.0000140898255247314i | H161: 0 | J161: -353.5 | K161: =EXP(-((J161)^2/(Sheet2!B$21^2*0.360673760222241))) -> 8.975233783e-16 | L161: =IF(1-ABS(J161)/Sheet2!B$22 >0, 1-ABS(J161)/Sheet2!B$22,0) -> 0 | M161: 0 | N161: =IF(ABS(J161)<Sheet2!B$24/2, 1, 0) -> 0
A162: -352.5 | B162: 0 | C162: -5.19132441130542E-004-2.75437706852255E-004i | D162: 0 | E162: 0.322221179041356+0.170961888760286i | F162: -6.00930583302185E-07-8.87518626533982E-07i | H162: 0 | J162: -352.5 | K162: =EXP(-((J162)^2/(Sheet2!B$21^2*0.360673760222241))) -> 1.091582691e-15 | L162: =IF(1-ABS(J162)/Sheet2!B$22 >0, 1-ABS(J162)/Sheet2!B$22,0) -> 0 | M162: 0 | N162: =IF(ABS(J162)<Sheet2!B$24/2, 1, 0) -> 0
A163: -351.5 | B163: 0 | C163: 8.75037153557737E-003+4.67717102947291E-003i | D163: 0 | E163: -1.32290374068398-0.707106781186543i | F163: -0.0000413431994254019-0.0000618744705070846i | H163: 0 | J163: -351.5 | K163: =EXP(-((J163)^2/(Sheet2!B$21^2*0.360673760222241))) -> 1.326864844e-15 | L163: =IF(1-ABS(J163)/Sheet2!B$22 >0, 1-ABS(J163)/Sheet2!B$22,0) -> 0 | M163: 0 | N163: =IF(ABS(J163)<Sheet2!B$24/2, 1, 0) -> 0
A164: -350.5 | B164: 0 | C164: -1.67408289684056E-002-9.01430212632134E-003i | D164: 0 | E164: 1.82979938618427+0.985277642388934i | F164: -0.000108753841119005-0.000164943644976247i | H164: 0 | J164: -350.5 | K164: =EXP(-((J164)^2/(Sheet2!B$21^2*0.360673760222241))) -> 1.611966122e-15 | L164: =IF(1-ABS(J164)/Sheet2!B$22 >0, 1-ABS(J164)/Sheet2!B$22,0) -> 0 | M164: 0 | N164: =IF(ABS(J164)<Sheet2!B$24/2, 1, 0) -> 0
A165: -349.5 | B165: 0 | C165: 1.38872200946465E-002+7.53279152412822E-003i | D165: 0 | E165: -1.66656653600416-0.903989293123438i | F165: -0.0000816720670135974-0.000125538982768085i | H165: 0 | J165: -349.5 | K165: =EXP(-((J165)^2/(Sheet2!B$21^2*0.360673760222241))) -> 1.957241019e-15 | L165: =IF(1-ABS(J165)/Sheet2!B$22 >0, 1-ABS(J165)/Sheet2!B$22,0) -> 0 | M165: 0 | N165: =IF(ABS(J165)<Sheet2!B$24/2, 1, 0) -> 0
A166: -348.5 | B166: 0 | C166: -4.06871827045533E-003-2.22316162382947E-003i | D166: 0 | E166: 0.902077410253771+0.49289819222978i | F166: -0.0000128725324752219-0.0000200546388019968i | H166: 0 | J166: -348.5 | K166: =EXP(-((J166)^2/(Sheet2!B$21^2*0.360673760222241))) -> 2.375154602e-15 | L166: =IF(1-ABS(J166)/Sheet2!B$22 >0, 1-ABS(J166)/Sheet2!B$22,0) -> 0 | M166: 0 | N166: =IF(ABS(J166)<Sheet2!B$24/2, 1, 0) -> 0
A167: -347.5 | B167: 0 | C167: 1.58572031614014E-004+8.72771035745472E-005i | D167: 0 | E167: 0.178085390536934+9.80171403295601E-002i | F167: 9.84235503479639E-08+0.0000001554277707503i | H167: 0 | J167: -347.5 | K167: =EXP(-((J167)^2/(Sheet2!B$21^2*0.360673760222241))) -> 2.880703992e-15 | L167: =IF(1-ABS(J167)/Sheet2!B$22 >0, 1-ABS(J167)/Sheet2!B$22,0) -> 0 | M167: 0 | N167: =IF(ABS(J167)<Sheet2!B$24/2, 1, 0) -> 0
A168: -346.5 | B168: 0 | C168: -6.94037045767322E-003-3.84772874808097E-003i | D168: 0 | E168: -1.17816556202185-0.653172842953772i | F168: 0.000028318367678027+0.0000453326150299062i | H168: 0 | J168: -346.5 | K168: =EXP(-((J168)^2/(Sheet2!B$21^2*0.360673760222241))) -> 3.491922217e-15 | L168: =IF(1-ABS(J168)/Sheet2!B$22 >0, 1-ABS(J168)/Sheet2!B$22,0) -> 0 | M168: 0 | N168: =IF(ABS(J168)<Sheet2!B$24/2, 1, 0) -> 0
A169: -345.5 | B169: 0 | C169: 1.50877969971499E-002+8.42526646479368E-003i | D169: 0 | E169: 1.73711237386346+0.970031253194537i | F169: 0.0000901821353537366+0.0001463563462909i | H169: 0 | J169: -345.5 | K169: =EXP(-((J169)^2/(Sheet2!B$21^2*0.360673760222241))) -> 4.230480174e-15 | L169: =IF(1-ABS(J169)/Sheet2!B$22 >0, 1-ABS(J169)/Sheet2!B$22,0) -> 0 | M169: 0 | N169: =IF(ABS(J169)<Sheet2!B$24/2, 1, 0) -> 0
A170: -344.5 | B170: 0 | C170: -1.37582309712228E-002-7.73828270552422E-003i | D170: 0 | E170: -1.65880866715951-0.932992798834733i | F170: 0.0000780125537012267+0.00012836330420855i | H170: 0 | J170: -344.5 | K170: =EXP(-((J170)^2/(Sheet2!B$21^2*0.360673760222241))) -> 5.122405355e-15 | L170: =IF(1-ABS(J170)/Sheet2!B$22 >0, 1-ABS(J170)/Sheet2!B$22,0) -> 0 | M170: 0 | N170: =IF(ABS(J170)<Sheet2!B$24/2, 1, 0) -> 0
A171: -343.5 | B171: 0 | C171: 4.80904500860117E-003+2.72429034718782E-003i | D171: 0 | E171: 0.980718614955354+0.555570233019599i | F171: 0.0000160139266854656+0.0000267176225603028i | H171: 0 | J171: -343.5 | K171: =EXP(-((J171)^2/(Sheet2!B$21^2*0.360673760222241))) -> 6.198939498e-15 | L171: =IF(1-ABS(J171)/Sheet2!B$22 >0, 1-ABS(J171)/Sheet2!B$22,0) -> 0 | M171: 0 | N171: =IF(ABS(J171)<Sheet2!B$24/2, 1, 0) -> 0
A172: -342.5 | B172: 0 | C172: -9.25062866996155E-006-5.27797010390458E-006i | D172: 0 | E172: 4.30130879331938E-002+2.45412285229101E-002i | F172: -1.34185116980685E-09-2.27021792179063E-09i | H172: 0 | J172: -342.5 | K172: =EXP(-((J172)^2/(Sheet2!B$21^2*0.360673760222241))) -> 7.497561356e-15 | L172: =IF(1-ABS(J172)/Sheet2!B$22 >0, 1-ABS(J172)/Sheet2!B$22,0) -> 0 | M172: 0 | N172: =IF(ABS(J172)<Sheet2!B$24/2, 1, 0) -> 0
A173: -341.5 | B173: 0 | C173: 5.37344778673246E-003+3.08772498379369E-003i | D173: 0 | E173: -1.03667234811488-0.595699304492427i | F173: -0.0000186557455461743-0.0000320095910928264i | H173: 0 | J173: -341.5 | K173: =EXP(-((J173)^2/(Sheet2!B$21^2*0.360673760222241))) -> 9.063205666e-15 | L173: =IF(1-ABS(J173)/Sheet2!B$22 >0, 1-ABS(J173)/Sheet2!B$22,0) -> 0 | M173: 0 | N173: =IF(ABS(J173)<Sheet2!B$24/2, 1, 0) -> 0
A174: -340.5 | B174: 0 | C174: -1.3460364567431E-002-7.78970968080187E-003i | D174: 0 | E174: 1.64075376381878+0.949528180593026i | F174: -0.0000734429748291284-0.000127809954778314i | H174: 0 | J174: -340.5 | K174: =EXP(-((J174)^2/(Sheet2!B$21^2*0.360673760222241))) -> 1.094971507e-14 | L174: =IF(1-ABS(J174)/Sheet2!B$22 >0, 1-ABS(J174)/Sheet2!B$22,0) -> 0 | M174: 0 | N174: =IF(ABS(J174)<Sheet2!B$24/2, 1, 0) -> 0
A175: -339.5 | B175: 0 | C175: 1.34795303005971E-002+7.85610433574691E-003i | D175: 0 | E175: -1.64192145369966-0.9569403357322i | F175: -0.0000730725343287408-0.000128991062513658i | H175: 0 | J175: -339.5 | K175: =EXP(-((J175)^2/(Sheet2!B$21^2*0.360673760222241))) -> 1.322156842e-14 | L175: =IF(1-ABS(J175)/Sheet2!B$22 >0, 1-ABS(J175)/Sheet2!B$22,0) -> 0 | M175: 0 | N175: =IF(ABS(J175)<Sheet2!B$24/2, 1, 0) -> 0
A176: -338.5 | B176: 0 | C176: -5.4937325912097E-003-3.22446292344114E-003i | D176: 0 | E176: 1.04821110385327+0.61523159058062i | F176: -0.0000188740002527484-0.0000337991784031436i | H176: 0 | J176: -338.5 | K176: =EXP(-((J176)^2/(Sheet2!B$21^2*0.360673760222241))) -> 1.595593696e-14 | L176: =IF(1-ABS(J176)/Sheet2!B$22 >0, 1-ABS(J176)/Sheet2!B$22,0) -> 0 | M176: 0 | N176: =IF(ABS(J176)<Sheet2!B$24/2, 1, 0) -> 0
A177: -337.5 | B177: 0 | C177: 3.4457784446032E-005+2.03668634303933E-005i | D177: 0 | E177: -8.30154015113989E-002-4.90676743274167E-002i | F177: -9.30586094553536E-09-1.69076334522207E-08i | H177: 0 | J177: -337.5 | K177: =EXP(-((J177)^2/(Sheet2!B$21^2*0.360673760222241))) -> 1.924512882e-14 | L177: =IF(1-ABS(J177)/Sheet2!B$22 >0, 1-ABS(J177)/Sheet2!B$22,0) -> 0 | M177: 0 | N177: =IF(ABS(J177)<Sheet2!B$24/2, 1, 0) -> 0
A178: -336.5 | B178: 0 | C178: -4.03949232232293E-003-2.40436415973369E-003i | D178: 0 | E178: -0.898831721994398-0.534997619887093i | F178: 0.0000117224736862866+0.00002161118777995i | H178: 0 | J178: -336.5 | K178: =EXP(-((J178)^2/(Sheet2!B$21^2*0.360673760222241))) -> 2.319949382e-14 | L178: =IF(1-ABS(J178)/Sheet2!B$22 >0, 1-ABS(J178)/Sheet2!B$22,0) -> 0 | M178: 0 | N178: =IF(ABS(J178)<Sheet2!B$24/2, 1, 0) -> 0
A179: -335.5 | B179: 0 | C179: 1.1879567920982E-002+7.12033899394429E-003i | D179: 0 | E179: 1.54139987809669+0.923879532511279i | F179: 0.0000586641454209796+0.000109752896572728i | H179: 0 | J179: -335.5 | K179: =EXP(-((J179)^2/(Sheet2!B$21^2*0.360673760222241))) -> 2.79508727e-14 | L179: =IF(1-ABS(J179)/Sheet2!B$22 >0, 1-ABS(J179)/Sheet2!B$22,0) -> 0 | M179: 0 | N179: =IF(ABS(J179)<Sheet2!B$24/2, 1, 0) -> 0
A180: -334.5 | B180: 0 | C180: -1.30668572159913E-002-7.88656392765722E-003i | D180: 0 | E180: -1.6165925408704-0.975702130038522i | F180: 0.0000671442334254499+0.000127493604185501i | H180: 0 | J180: -334.5 | K180: =EXP(-((J180)^2/(Sheet2!B$21^2*0.360673760222241))) -> 3.365669065e-14 | L180: =IF(1-ABS(J180)/Sheet2!B$22 >0, 1-ABS(J180)/Sheet2!B$22,0) -> 0 | M180: 0 | N180: =IF(ABS(J180)<Sheet2!B$24/2, 1, 0) -> 0
A181: -333.5 | B181: 0 | C181: 6.10507607278839E-003+3.71034835785089E-003i | D181: 0 | E181: 1.10499557218906+0.671558954847016i | F181: 0.0000212718218149593+0.0000409991850670374i | H181: 0 | J181: -333.5 | K181: =EXP(-((J181)^2/(Sheet2!B$21^2*0.360673760222241))) -> 4.050481248e-14 | L181: =IF(1-ABS(J181)/Sheet2!B$22 >0, 1-ABS(J181)/Sheet2!B$22,0) -> 0 | M181: 0 | N181: =IF(ABS(J181)<Sheet2!B$24/2, 1, 0) -> 0
A182: -332.5 | B182: 0 | C182: -2.00062938891156E-004-1.22429934665101E-004i | D182: 0 | E182: -0.200031466969134-0.12241067519922i | F182: 1.25160760928014E-07+2.4489839432001E-07i | H182: 0 | J182: -332.5 | K182: =EXP(-((J182)^2/(Sheet2!B$21^2*0.360673760222241))) -> 4.871929742e-14 | L182: =IF(1-ABS(J182)/Sheet2!B$22 >0, 1-ABS(J182)/Sheet2!B$22,0) -> 0 | M182: 0 | N182: =IF(ABS(J182)<Sheet2!B$24/2, 1, 0) -> 0
A183: -331.5 | B183: 0 | C183: 2.92634305610997E-003+1.80315970072809E-003i | D183: 0 | E183: -0.765028503535526-0.471396736825991i | F183: -6.94366125074018E-06-0.0000137946856748361i | H183: 0 | J183: -331.5 | K183: =EXP(-((J183)^2/(Sheet2!B$21^2*0.360673760222241))) -> 5.856721645e-14 | L183: =IF(1-ABS(J183)/Sheet2!B$22 >0, 1-ABS(J183)/Sheet2!B$22,0) -> 0 | M183: 0 | N183: =IF(ABS(J183)<Sheet2!B$24/2, 1, 0) -> 0
A184: -330.5 | B184: 0 | C184: -1.03637187521742E-002-6.42988701393794E-003i | D184: 0 | E184: 1.43970266042488+0.893224301195504i | F184: -0.0000458867106230483-0.0000925712544019769i | H184: 0 | J184: -330.5 | K184: =EXP(-((J184)^2/(Sheet2!B$21^2*0.360673760222241))) -> 7.036672303e-14 | L184: =IF(1-ABS(J184)/Sheet2!B$22 >0, 1-ABS(J184)/Sheet2!B$22,0) -> 0 | M184: 0 | N184: =IF(ABS(J184)<Sheet2!B$24/2, 1, 0) -> 0
A185: -329.5 | B185: 0 | C185: 1.25372621106228E-002+7.8317740525259E-003i | D185: 0 | E185: -1.58349373921215-0.98917650996477i | F185: -0.0000605283456746135-0.000124015651790992i | H185: 0 | J185: -329.5 | K185: =EXP(-((J185)^2/(Sheet2!B$21^2*0.360673760222241))) -> 8.449660219e-14 | L185: =IF(1-ABS(J185)/Sheet2!B$22 >0, 1-ABS(J185)/Sheet2!B$22,0) -> 0 | M185: 0 | N185: =IF(ABS(J185)<Sheet2!B$24/2, 1, 0) -> 0
A186: -328.5 | B186: 0 | C186: -6.62989948617703E-003-4.16989605235927E-003i | D186: 0 | E186: 1.15151200481558+0.72424708295146i | F186: -0.0000230718689846074-0.0000480168536312495i | H186: 0 | J186: -328.5 | K186: =EXP(-((J186)^2/(Sheet2!B$21^2*0.360673760222241))) -> 1.014075616e-13 | L186: =IF(1-ABS(J186)/Sheet2!B$22 >0, 1-ABS(J186)/Sheet2!B$22,0) -> 0 | M186: 0 | N186: =IF(ABS(J186)<Sheet2!B$24/2, 1, 0) -> 0
A187: -327.5 | B187: 0 | C187: 4.74570390229448E-004+3.00518385297485E-004i | D187: 0 | E187: -0.308081284802403-0.195090322016133i | F187: -4.37890134958057E-07-9.25840902491888E-07i | H187: 0 | J187: -327.5 | K187: =EXP(-((J187)^2/(Sheet2!B$21^2*0.360673760222241))) -> 1.216355746e-13 | L187: =IF(1-ABS(J187)/Sheet2!B$22 >0, 1-ABS(J187)/Sheet2!B$22,0) -> 0 | M187: 0 | N187: =IF(ABS(J187)<Sheet2!B$24/2, 1, 0) -> 0
A188: -326.5 | B188: 0 | C188: -2.02008422995277E-003-1.28790389372067E-003i | D188: 0 | E188: -0.635623194974969-0.40524131400498i | F188: 3.81050263078818E-06+8.18621587747117E-06i | H188: 0 | J188: -326.5 | K188: =EXP(-((J188)^2/(Sheet2!B$21^2*0.360673760222241))) -> 1.458176376e-13 | L188: =IF(1-ABS(J188)/Sheet2!B$22 >0, 1-ABS(J188)/Sheet2!B$22,0) -> 0 | M188: 0 | N188: =IF(ABS(J188)<Sheet2!B$24/2, 1, 0) -> 0
A189: -325.5 | B189: 0 | C189: 8.92835590259121E-003+5.73087116856944E-003i | D189: 0 | E189: 1.33629008097712+0.857728610000261i | F189: 0.0000350767063527926+0.0000765810629791714i | H189: 0 | J189: -325.5 | K189: =EXP(-((J189)^2/(Sheet2!B$21^2*0.360673760222241))) -> 1.747103689e-13 | L189: =IF(1-ABS(J189)/Sheet2!B$22 >0, 1-ABS(J189)/Sheet2!B$22,0) -> 0 | M189: 0 | N189: =IF(ABS(J189)<Sheet2!B$24/2, 1, 0) -> 0
A190: -324.5 | B190: 0 | C190: -1.19086122626826E-002-7.6955070949242E-003i | D190: 0 | E190: -1.5432830111603-0.997290456678681i | F190: 0.0000535185160321115+0.000118763453618601i | H190: 0 | J190: -324.5 | K190: =EXP(-((J190)^2/(Sheet2!B$21^2*0.360673760222241))) -> 2.092119463e-13 | L190: =IF(1-ABS(J190)/Sheet2!B$22 >0, 1-ABS(J190)/Sheet2!B$22,0) -> 0 | M190: 0 | N190: =IF(ABS(J190)<Sheet2!B$24/2, 1, 0) -> 0
A191: -323.5 | B191: 0 | C191: 7.05912470893851E-003+4.59246437698768E-003i | D191: 0 | E191: 1.18820239933572+0.773010453362736i | F191: 0.0000241882297313167+0.0000545677719160062i | H191: 0 | J191: -323.5 | K191: =EXP(-((J191)^2/(Sheet2!B$21^2*0.360673760222241))) -> 2.503879673e-13 | L191: =IF(1-ABS(J191)/Sheet2!B$22 >0, 1-ABS(J191)/Sheet2!B$22,0) -> 0 | M191: 0 | N191: =IF(ABS(J191)<Sheet2!B$24/2, 1, 0) -> 0
A192: -322.5 | B192: 0 | C192: -8.29174328565186E-004-5.43064877058831E-004i | D192: 0 | E192: -0.407228272239147-0.26671275747491i | F192: 9.64104491792608E-07+0.0000022115137159873i | H192: 0 | J192: -322.5 | K192: =EXP(-((J192)^2/(Sheet2!B$21^2*0.360673760222241))) -> 2.995019162e-13 | L192: =IF(1-ABS(J192)/Sheet2!B$22 >0, 1-ABS(J192)/Sheet2!B$22,0) -> 0 | M192: 0 | N192: =IF(ABS(J192)<Sheet2!B$24/2, 1, 0) -> 0
A193: -321.5 | B193: 0 | C193: 1.30535257831866E-003+8.60670363668926E-004i | D193: 0 | E193: -0.510950600018184-0.336889853392196i | F193: -1.88509785245885E-06-4.39760038734702E-06i | H193: 0 | J193: -321.5 | K193: =EXP(-((J193)^2/(Sheet2!B$21^2*0.360673760222241))) -> 3.58051034e-13 | L193: =IF(1-ABS(J193)/Sheet2!B$22 >0, 1-ABS(J193)/Sheet2!B$22,0) -> 0 | M193: 0 | N193: =IF(ABS(J193)<Sheet2!B$24/2, 1, 0) -> 0
A194: -320.5 | B194: 0 | C194: -7.58623957809432E-003-5.03536659970946E-003i | D194: 0 | E194: 1.23176617732879+0.817584813151552i | F194: -0.0000261381703241829-0.0000620239426797617i | H194: 0 | J194: -320.5 | K194: =EXP(-((J194)^2/(Sheet2!B$21^2*0.360673760222241))) -> 4.278085256e-13 | L194: =IF(1-ABS(J194)/Sheet2!B$22 >0, 1-ABS(J194)/Sheet2!B$22,0) -> 0 | M194: 0 | N194: =IF(ABS(J194)<Sheet2!B$24/2, 1, 0) -> 0
A195: -319.5 | B195: 0 | C195: 1.11991440442169E-002+7.48302881332684E-003i | D195: 0 | E195: -1.49660576266549-0.999999999999994i | F195: -0.0000463883735008456-0.000111991440442168i | H195: =IMABS(G195) -> 0 | J195: -319.5 | K195: =EXP(-((J195)^2/(Sheet2!B$21^2*0.360673760222241))) -> 5.108731924e-13 | L195: =IF(1-ABS(J195)/Sheet2!B$22 >0, 1-ABS(J195)/Sheet2!B$22,0) -> 0 | M195: 0 | N195: =IF(ABS(J195)<Sheet2!B$24/2, 1, 0) -> 0
A196: -318.5 | B196: 0 | C196: -7.38735606552782E-003-4.96892376863213E-003i | D196: 0 | E196: 1.21551273670974+0.817584813151577i | F196: =IMPRODUCT(C196,E196,D$1027) -> -0.0000245845438865874-0.0000603979012851542i | H196: 0 | J196: -318.5 | K196: =EXP(-((J196)^2/(Sheet2!B$21^2*0.360673760222241))) -> 6.09727761e-13 | L196: =IF(1-ABS(J196)/Sheet2!B$22 >0, 1-ABS(J196)/Sheet2!B$22,0) -> 0 | M196: 0 | N196: =IF(ABS(J196)<Sheet2!B$24/2, 1, 0) -> 0
A197: =A196+1 -> -317.5 | B197: 0 | C197: 1.23780491989106E-003+8.3810616510058E-004i | D197: 0 | E197: -0.497555005982525-0.336889853392219i | F197: -1.66763285616873E-06-4.17003917990438E-06i | H197: 0 | J197: =J196+1 -> -317.5 | K197: =EXP(-((J197)^2/(Sheet2!B$21^2*0.360673760222241))) -> 7.273073891e-13 | L197: =IF(1-ABS(J197)/Sheet2!B$22 >0, 1-ABS(J197)/Sheet2!B$22,0) -> 0 | M197: 0 | N197: =IF(ABS(J197)<Sheet2!B$24/2, 1, 0) -> 0
A198: -316.5 | B198: 0 | C198: -7.6565116690483E-004-5.218482915826E-004i | D198: 0 | E198: -0.391318582973604-0.266712757474898i | F198: 8.02149664268623E-07+0.0000020420893398918i | H198: 0 | J198: -316.5 | K198: =EXP(-((J198)^2/(Sheet2!B$21^2*0.360673760222241))) -> 8.670800755e-13 | L198: =IF(1-ABS(J198)/Sheet2!B$22 >0, 1-ABS(J198)/Sheet2!B$22,0) -> 0 | M198: 0 | N198: =IF(ABS(J198)<Sheet2!B$24/2, 1, 0) -> 0
A199: -315.5 | B199: 0 | C199: 6.34738632678022E-003+4.35479619765206E-003i | D199: 0 | E199: 1.12671081709372+0.773010453362733i | F199: 0.0000189268292580336+0.0000490659598213298i | H199: 0 | J199: -315.5 | K199: =EXP(-((J199)^2/(Sheet2!B$21^2*0.360673760222241))) -> 1.033140983e-12 | L199: =IF(1-ABS(J199)/Sheet2!B$22 >0, 1-ABS(J199)/Sheet2!B$22,0) -> 0 | M199: 0 | N199: =IF(ABS(J199)<Sheet2!B$24/2, 1, 0) -> 0
A200: -314.5 | B200: 0 | C200: -1.04270600277404E-002-7.2009136356399E-003i | D200: 0 | E200: -1.44409556662563-0.997290456678683i | F200: 0.0000393813435540408+0.000103988074568814i | H200: 0 | J200: -314.5 | K200: =EXP(-((J200)^2/(Sheet2!B$21^2*0.360673760222241))) -> 1.230323016e-12 | L200: =IF(1-ABS(J200)/Sheet2!B$22 >0, 1-ABS(J200)/Sheet2!B$22,0) -> 0 | M200: 0 | N200: =IF(ABS(J200)<Sheet2!B$24/2, 1, 0) -> 0
A201: -313.5 | B201: 0 | C201: 7.61247593299002E-003+5.29173228890401E-003i | D201: 0 | E201: 1.23389431743466+0.857728610000266i | F201: 0.0000242706030733467+0.0000652943840066409i | H201: 0 | J201: -313.5 | K201: =EXP(-((J201)^2/(Sheet2!B$21^2*0.360673760222241))) -> 1.46432637e-12 | L201: =IF(1-ABS(J201)/Sheet2!B$22 >0, 1-ABS(J201)/Sheet2!B$22,0) -> 0 | M201: 0 | N201: =IF(ABS(J201)<Sheet2!B$24/2, 1, 0) -> 0
... 826 more rows
